Workbook

Sheet # Onderlinge
A1: INVULLEN | B1: Nummer Onderlingen | E1: 1 | I1: Beginjaar | J1: 2016 | L1: Actueel Jaar | M1: 2016 | N1: Deze regels worden niet mee uitgeprint
A2: !!!!!! | B2: Organiserende vereniging | E2: De Heidebloem | I2: Eindjaar | J2: =J1+1 -> 2017 | N2: OPSLAAN ALS EXCEL WERKBLAD MET MACRO'S!!!!!
B3: Onderaan naam zestalcommissie lid invullen!!!
E5: =CONCATENATE("Roggelse doelen seizoen ",J1, " - ",J2,) -> Roggelse doelen seizoen 2016 - 2017
E6: =CONCATENATE(E1, "e Onderlinge Bekerwedstrijd ",E2) -> 1e Onderlinge Bekerwedstrijd De Heidebloem
B16: =CONCATENATE(A26," winnaar van deze ronde met ",C26," punten") -> Ons Genoegen 1 winnaar van deze ronde met 1399 punten
B17: =CONCATENATE(Uitslag!B4, " hoogste schutter met ", Uitslag!D4, " punten") -> Steve Wijler hoogste schutter met 244 punten
A19: =CONCATENATE("Op de banen van ",E2, " werd afgelopen weekend de ",E1,"e ronde van de Onderlinge") -> Op de banen van De Heidebloem werd afgelopen weekend de 1e ronde van de Onderlinge
A20: =CONCATENATE("Bekerwedstrijd georganiseerd. Deze wedstrijd werd goed bezocht, er waren ", COUNTIF(Uitslag!E4:E129, ">0") + COUNTIF('18m schutters'!D4:D18, ">0")," deelnemers.") -> Bekerwedstrijd georganiseerd. Deze wedstrijd werd goed bezocht, er waren 93 deelnemers.
A21: =CONCATENATE("De overwinning werd behaald door ", A26, ". De hoogste schutter werd") -> De overwinning werd behaald door Ons Genoegen 1. De hoogste schutter werd
A22: =CONCATENATE("door ",VLOOKUP(Uitslag!Q4,'# Onderlinge'!A58:C62,2)," geleverd: ",Uitslag!B4," behaalde ", Uitslag!D4, " punten.") -> door Ons Genoegen geleverd: Steve Wijler behaalde 244 punten.
A24: Uitslagen
A25: 1e Zestallen | E25: 3e Zestallen
A26: =Uitslag!X4 -> Ons Genoegen 1 | C26: =Uitslag!Y4 -> 1399 | E26: =Uitslag!X19 -> Heideroosje 3 | G26: =Uitslag!Y19 -> 1222
A27: =Uitslag!X5 -> Heideroosje 1 | C27: =Uitslag!Y5 -> 1342 | E27: =Uitslag!X20 -> Ons Genoegen 3 | G27: =Uitslag!Y20 -> 1191
A28: =Uitslag!X6 -> Heidebloem 1 | C28: =Uitslag!Y6 -> 1288 | E28: =Uitslag!X21 -> Heidebloem 3 | G28: =Uitslag!Y21 -> 848
A29: =Uitslag!X7 -> Roos in Bloei 1 | C29: =Uitslag!Y7 -> 1274 | E29: =Uitslag!X22 -> Roos in Bloei 3 | G29: =Uitslag!Y22 -> 174
A30: =Uitslag!X8 -> Buitenlust 1 | C30: =Uitslag!Y8 -> 1176
E31: 4e Zestallen
A32: 2e Zestallen | E32: =Uitslag!X26 -> Heideroosje 4 | G32: =Uitslag!Y26 -> 1161
A33: =Uitslag!X12 -> Ons Genoegen 2 | C33: =Uitslag!Y12 -> 1302 | E33: =Uitslag!X27 -> Ons Genoegen 4 | G33: =Uitslag!Y27 -> 318
A34: =Uitslag!X13 -> Heideroosje 2 | C34: =Uitslag!Y13 -> 1285
A35: =Uitslag!X14 -> Heidebloem 2 | C35: =Uitslag!Y14 -> 1201
A36: =Uitslag!X15 -> Roos in Bloei 2 | C36: =Uitslag!Y15 -> 1142
A37: =Uitslag!X16 -> Buitenlust 2 | C37: =Uitslag!Y16 -> 191 | E37: 5e/6e/7e Zestallen
E38: =Uitslag!X33 -> Heideroosje 5 | G38: =Uitslag!Y33 -> 942
E39: =Uitslag!X34 -> Heideroosje 6 | G39: =Uitslag!Y34 -> 246
A41: Hoogste Heer | D41: =INDEX(Uitslag!$B$4:$B$129, MATCH(1, Uitslag!$C$4:$C$129, 0)) -> Steve Wijler | G41: =INDEX(Uitslag!$D$4:$D$129, MATCH(1, Uitslag!$C$4:$C$129, 0)) -> 244 | H41: Punten | I41: =VLOOKUP(INDEX(Uitslag!$Q$4:$Q$129, MATCH(1, Uitslag!$C$4:$C$129, 0)), $A$58:$B$62, 2) -> Ons Genoegen
A42: Hoogste Dame | D42: =INDEX(Uitslag!$B$4:$B$129, MATCH(2, Uitslag!$C$4:$C$129, 0)) -> Sabine van Rijt | G42: =INDEX(Uitslag!$D$4:$D$129, MATCH(2, Uitslag!$C$4:$C$129, 0)) -> 227 | H42: Punten | I42: =VLOOKUP(INDEX(Uitslag!$Q$4:$Q$129, MATCH(2, Uitslag!$C$4:$C$129, 0)), $A$58:$B$62, 2) -> Heidebloem
A43: Hoogste Veteraan | D43: =INDEX(Uitslag!$B$4:$B$129, MATCH(3, Uitslag!$C$4:$C$129, 0)) -> Peter Verstappen | G43: =INDEX(Uitslag!$D$4:$D$129, MATCH(3, Uitslag!$C$4:$C$129, 0)) -> 223 | H43: Punten | I43: =VLOOKUP(INDEX(Uitslag!$Q$4:$Q$129, MATCH(3, Uitslag!$C$4:$C$129, 0)), $A$58:$B$62, 2) -> Heideroosje
A44: Hoogste Jeugd (t/m 18 jaar): | D44: =INDEX(Uitslag!$B$4:$B$129, MATCH(4, Uitslag!$C$4:$C$129, 0)) -> Jasper Stokmans | G44: =INDEX(Uitslag!$D$4:$D$129, MATCH(4, Uitslag!$C$4:$C$129, 0)) -> 213 | H44: Punten | I44: =VLOOKUP(INDEX(Uitslag!$Q$4:$Q$129, MATCH(4, Uitslag!$C$4:$C$129, 0)), $A$58:$B$62, 2) -> Ons Genoegen
A45: Hoogste Jeugd (t/m 15 jaar): | D45: =INDEX(Uitslag!$B$4:$B$129, MATCH(5, Uitslag!$C$4:$C$129, 0)) -> Mike Sijbers | G45: =INDEX(Uitslag!$D$4:$D$129, MATCH(5, Uitslag!$C$4:$C$129, 0)) -> 208 | H45: Punten | I45: =VLOOKUP(INDEX(Uitslag!$Q$4:$Q$129, MATCH(5, Uitslag!$C$4:$C$129, 0)), $A$58:$B$62, 2) -> Heideroosje
A46: Hoogste Jeugd 18m | D46: ='18m schutters'!B4 -> Loek Hendriks | G46: ='18m schutters'!D4 -> 177 | H46: Punten | I46: =VLOOKUP('18m schutters'!Q4, $A$58:$B$62, 2) -> Roos in Bloei
A48: Wij kijken terug op een gezellig en sportief schietweekend!
A49: Graag tot ziens op de volgende bekerwedstrijd bij Ons Genoegen.
A51: =CONCATENATE("Namens de zestalcommissie ",E2,) -> Namens de zestalcommissie De Heidebloem
A58: 1 | B58: Ons Genoegen
A59: 2 | B59: Buitenlust
A60: 3 | B60: Roos in Bloei
A61: 4 | B61: Heidebloem
A62: 5 | B62: Heideroosje

Sheet Uitslag
B1: Uitslag Persoonlijk | X1: Uitslag Zestallen
E2: Hoogste serie | K2: Laatste pijlen*
A3: Positie | B3: Naam | C3: Klasse | D3: Punten | E3: 1 | F3: 2 | G3: 3 | H3: 4 | I3: 5 | J3: Totaal | K3: 21 | L3: 22 | M3: 23 | N3: 24 | O3: 25 | P3: Totaal2 | Q3: Club | T3: Klasse | X3: 1e Zestallen | Y3: Punten
A4: 1 | B4: Steve Wijler | C4: 1 | D4: 244 | E4: 9 | F4: 10 | G4: 10 | H4: 10 | I4: 10 | J4: 49 | K4: 9 | L4: 10 | M4: 10 | N4: 10 | O4: 10 | P4: 49 | Q4: 1 | T4: 1 | U4: Heren | X4: Ons Genoegen 1 | Y4: ='Ons Genoegen'!U20 -> 1399
A5: 2 | B5: Frank Hoogmans | C5: 1 | D5: 239 | E5: 9 | F5: 10 | G5: 10 | H5: 10 | I5: 10 | J5: 49 | K5: 10 | L5: 9 | M5: 9 | N5: 10 | O5: 10 | P5: 48 | Q5: 1 | T5: 2 | U5: Dames | X5: Heideroosje 1 | Y5: =Heideroosje!U20 -> 1342
A6: 3 | B6: Edwin Joosten | C6: 1 | D6: 233 | E6: 10 | F6: 10 | G6: 10 | H6: 10 | I6: 10 | J6: 50 | K6: 10 | L6: 9 | M6: 8 | N6: 9 | O6: 9 | P6: 45 | Q6: 5 | T6: 3 | U6: Veteraan | X6: Heidebloem 1 | Y6: =Heidebloem!U20 -> 1288
A7: 4 | B7: Rik van den Beuken | C7: 1 | D7: 233 | E7: 9 | F7: 10 | G7: 10 | H7: 10 | I7: 10 | J7: 49 | K7: 10 | L7: 9 | M7: 8 | N7: 9 | O7: 9 | P7: 45 | Q7: 1 | T7: 4 | U7: Jeugd t/m 18 | X7: Roos in Bloei 1 | Y7: ='Roos in Bloei'!U20 -> 1274
A8: 5 | B8: Ben Koper | C8: 1 | D8: 229 | E8: 9 | F8: 10 | G8: 9 | H8: 9 | I8: 10 | J8: 47 | K8: 9 | L8: 10 | M8: 9 | N8: 9 | O8: 10 | P8: 47 | Q8: 5 | T8: 5 | U8: Jeugd t/m 15 | X8: Buitenlust 1 | Y8: =Buitenlust!U20 -> 1176
A9: 6 | B9: Henk Smolenaars | C9: 1 | D9: 228 | E9: 10 | F9: 9 | G9: 9 | H9: 10 | I9: 9 | J9: 47 | K9: 8 | L9: 8 | M9: 10 | N9: 9 | O9: 10 | P9: 45 | Q9: 1 | T9: 6 | U9: Jeugd t/m 13
A10: 7 | B10: Kevin Slaats | C10: 1 | D10: 228 | E10: 10 | F10: 10 | G10: 9 | H10: 9 | I10: 10 | J10: 48 | K10: 9 | L10: 9 | M10: 10 | N10: 8 | O10: 10 | P10: 46 | Q10: 1
A11: 8 | B11: Sabine van Rijt | C11: 2 | D11: 227 | E11: 9 | F11: 10 | G11: 10 | H11: 10 | I11: 9 | J11: 48 | K11: 9 | L11: 10 | M11: 10 | N11: 10 | O11: 9 | P11: 48 | Q11: 4 | X11: 2e Zestallen | Y11: Punten
A12: 9 | B12: Huib Salimans | C12: 1 | D12: 227 | E12: 9 | F12: 9 | G12: 10 | H12: 9 | I12: 10 | J12: 47 | K12: 9 | L12: 9 | M12: 10 | N12: 10 | O12: 9 | P12: 47 | Q12: 1 | X12: Ons Genoegen 2 | Y12: ='Ons Genoegen'!U21 -> 1302
A13: 10 | B13: Peter Verstappen | C13: 3 | D13: 223 | E13: 9 | F13: 9 | G13: 10 | H13: 10 | I13: 9 | J13: 47 | K13: 9 | L13: 10 | M13: 9 | N13: 9 | O13: 8 | P13: 45 | Q13: 5 | X13: Heideroosje 2 | Y13: =Heideroosje!U21 -> 1285
A14: 11 | B14: Jo Peeters | C14: 3 | D14: 222 | E14: 9 | F14: 10 | G14: 10 | H14: 10 | I14: 9 | J14: 48 | K14: 9 | L14: 8 | M14: 10 | N14: 10 | O14: 10 | P14: 47 | Q14: 5 | X14: Heidebloem 2 | Y14: =Heidebloem!U21 -> 1201
A15: 12 | B15: Jac Gielen | C15: 1 | D15: 222 | E15: 8 | F15: 9 | G15: 9 | H15: 10 | I15: 10 | J15: 46 | K15: 10 | L15: 6 | M15: 9 | N15: 9 | O15: 10 | P15: 44 | Q15: 2 | X15: Roos in Bloei 2 | Y15: ='Roos in Bloei'!U21 -> 1142
A16: 13 | B16: Leo Pijls | C16: 1 | D16: 222 | E16: 9 | F16: 8 | G16: 9 | H16: 10 | I16: 9 | J16: 45 | K16: 9 | L16: 8 | M16: 8 | N16: 9 | O16: 9 | P16: 43 | Q16: 1 | X16: Buitenlust 2 | Y16: =Buitenlust!U21 -> 191
A17: 14 | B17: Jeroen Verschuren | C17: 1 | D17: 222 | E17: 10 | F17: 10 | G17: 10 | H17: 9 | I17: 8 | J17: 47 | K17: 10 | L17: 10 | M17: 10 | N17: 9 | O17: 8 | P17: 47 | Q17: 3
A18: 15 | B18: Theo Pijls | C18: 3 | D18: 220 | E18: 10 | F18: 8 | G18: 9 | H18: 10 | I18: 10 | J18: 47 | K18: 10 | L18: 8 | M18: 9 | N18: 10 | O18: 10 | P18: 47 | Q18: 1 | X18: 3e Zestallen | Y18: Punten
A19: 16 | B19: Har Luijten | C19: 3 | D19: 218 | E19: 10 | F19: 9 | G19: 9 | H19: 9 | I19: 10 | J19: 47 | K19: 10 | L19: 9 | M19: 9 | N19: 9 | O19: 10 | P19: 47 | Q19: 2 | X19: Heideroosje 3 | Y19: =Heideroosje!U22 -> 1222
A20: 17 | B20: Jan Sijbers | C20: 1 | D20: 218 | E20: 8 | F20: 8 | G20: 9 | H20: 10 | I20: 10 | J20: 45 | K20: 10 | L20: 10 | M20: 6 | N20: 9 | O20: 10 | P20: 45 | Q20: 3 | X20: Ons Genoegen 3 | Y20: ='Ons Genoegen'!U22 -> 1191
A21: 18 | B21: Maikel Boumans | C21: 1 | D21: 218 | E21: 9 | F21: 8 | G21: 9 | H21: 10 | I21: 10 | J21: 46 | K21: 9 | L21: 9 | M21: 10 | N21: 9 | O21: 9 | P21: 46 | Q21: 5 | X21: Heidebloem 3 | Y21: =Heidebloem!U22 -> 848
A22: 19 | B22: Lowie Joosten | C22: 3 | D22: 218 | E22: 10 | F22: 8 | G22: 8 | H22: 9 | I22: 10 | J22: 45 | K22: 10 | L22: 8 | M22: 8 | N22: 10 | O22: 8 | P22: 44 | Q22: 4 | X22: Roos in Bloei 3 | Y22: ='Roos in Bloei'!U22 -> 174
A23: 20 | B23: Lau Geraets | C23: 1 | D23: 217 | E23: 10 | F23: 9 | G23: 9 | H23: 9 | I23: 9 | J23: 46 | K23: 9 | L23: 9 | M23: 8 | N23: 8 | O23: 10 | P23: 44 | Q23: 1 | X23: Buitenlust 3 | Y23: =Buitenlust!U22 -> 0
A24: 21 | B24: Marc Simons | C24: 1 | D24: 217 | E24: 9 | F24: 8 | G24: 9 | H24: 10 | I24: 9 | J24: 45 | K24: 9 | L24: 8 | M24: 9 | N24: 10 | O24: 9 | P24: 45 | Q24: 5
A25: 22 | B25: Etienne Deckers | C25: 1 | D25: 217 | E25: 8 | F25: 9 | G25: 10 | H25: 10 | I25: 10 | J25: 47 | K25: 9 | L25: 9 | M25: 9 | N25: 8 | O25: 8 | P25: 43 | Q25: 3 | X25: 4e Zestallen | Y25: Punten
A26: 23 | B26: Jos Bongers | C26: 1 | D26: 216 | E26: 8 | F26: 10 | G26: 9 | H26: 10 | I26: 10 | J26: 47 | K26: 8 | L26: 10 | M26: 9 | N26: 10 | O26: 10 | P26: 47 | Q26: 1 | X26: Heideroosje 4 | Y26: =Heideroosje!U23 -> 1161
A27: 24 | B27: Math Crins | C27: 1 | D27: 216 | E27: 10 | F27: 10 | G27: 10 | H27: 8 | I27: 8 | J27: 46 | K27: 9 | L27: 9 | M27: 9 | N27: 9 | O27: 8 | P27: 44 | Q27: 5 | X27: Ons Genoegen 4 | Y27: ='Ons Genoegen'!U23 -> 318
A28: 25 | B28: Marcel Walschot | C28: 1 | D28: 215 | E28: 10 | F28: 9 | G28: 9 | H28: 9 | I28: 9 | J28: 46 | K28: 8 | L28: 8 | M28: 8 | N28: 7 | O28: 10 | P28: 41 | Q28: 5 | X28: Heidebloem 4 | Y28: =Heidebloem!U23 -> 0
A29: 26 | B29: Gerard v/d Beuken | C29: 1 | D29: 215 | E29: 10 | F29: 8 | G29: 9 | H29: 9 | I29: 10 | J29: 46 | K29: 9 | L29: 10 | M29: 8 | N29: 7 | O29: 9 | P29: 43 | Q29: 2 | X29: Roos in Bloei 4 | Y29: ='Roos in Bloei'!U23 -> 0
A30: 27 | B30: Cor Joosten | C30: 1 | D30: 215 | E30: 10 | F30: 8 | G30: 10 | H30: 9 | I30: 10 | J30: 47 | K30: 6 | L30: 8 | M30: 8 | N30: 10 | O30: 8 | P30: 40 | Q30: 5 | X30: Buitenlust 4 | Y30: =Buitenlust!U23 -> 0
A31: 28 | B31: Michael Simons | C31: 1 | D31: 215 | E31: 10 | F31: 10 | G31: 8 | H31: 10 | I31: 6 | J31: 44 | K31: 10 | L31: 9 | M31: 9 | N31: 6 | O31: 8 | P31: 42 | Q31: 5
A32: 29 | B32: Rob Schaareman | C32: 1 | D32: 214 | E32: 10 | F32: 7 | G32: 9 | H32: 10 | I32: 9 | J32: 45 | K32: 10 | L32: 7 | M32: 9 | N32: 10 | O32: 9 | P32: 45 | Q32: 1 | X32: 5e / 6e Zestallen | Y32: Punten
A33: 30 | B33: Jasper Stokmans | C33: 4 | D33: 213 | E33: 10 | F33: 9 | G33: 9 | H33: 9 | I33: 8 | J33: 45 | K33: 9 | L33: 8 | M33: 10 | N33: 8 | O33: 8 | P33: 43 | Q33: 1 | X33: Heideroosje 5 | Y33: =Heideroosje!U24 -> 942
A34: 31 | B34: Piet van Roy | C34: 3 | D34: 213 | E34: 7 | F34: 10 | G34: 10 | H34: 9 | I34: 8 | J34: 44 | K34: 9 | L34: 10 | M34: 6 | N34: 10 | O34: 7 | P34: 42 | Q34: 4 | X34: Heideroosje 6 | Y34: =Heideroosje!U25 -> 246
A35: 32 | B35: Huub Sijbers | C35: 1 | D35: 212 | E35: 10 | F35: 9 | G35: 9 | H35: 7 | I35: 9 | J35: 44 | K35: 10 | L35: 9 | M35: 9 | N35: 7 | O35: 9 | P35: 44 | Q35: 5 | X35: Heideroosje 7 | Y35: =Heideroosje!U26 -> 0
A36: 33 | B36: Jan Derks | C36: 3 | D36: 212 | E36: 10 | F36: 9 | G36: 10 | H36: 9 | I36: 8 | J36: 46 | K36: 10 | L36: 9 | M36: 10 | N36: 9 | O36: 8 | P36: 46 | Q36: 5 | X36: Heideroosje 8 | Y36: =Heideroosje!U27 -> 0
A37: 34 | B37: Peter Mennen | C37: 1 | D37: 211 | E37: 9 | F37: 8 | G37: 9 | H37: 9 | I37: 9 | J37: 44 | K37: 10 | L37: 7 | M37: 10 | N37: 8 | O37: 7 | P37: 42 | Q37: 3 | X37: Ons Genoegen 5 | Y37: ='Ons Genoegen'!U24 -> 0
A38: 35 | B38: Peter Joosten | C38: 3 | D38: 210 | E38: 9 | F38: 9 | G38: 10 | H38: 7 | I38: 10 | J38: 45 | K38: 9 | L38: 9 | M38: 10 | N38: 7 | O38: 10 | P38: 45 | Q38: 4 | X38: Buitenlust 5 | Y38: =Buitenlust!U24 -> 0
A39: 36 | B39: Wiel Boonen | C39: 3 | D39: 210 | E39: 10 | F39: 9 | G39: 8 | H39: 9 | I39: 10 | J39: 46 | K39: 10 | L39: 7 | M39: 6 | N39: 7 | O39: 9 | P39: 39 | Q39: 4 | X39: Roos in Bloei 5 | Y39: ='Roos in Bloei'!U24 -> 0
A40: 37 | B40: Wim Verstappen | C40: 1 | D40: 210 | E40: 10 | F40: 9 | G40: 9 | H40: 9 | I40: 9 | J40: 46 | K40: 9 | L40: 8 | M40: 9 | N40: 9 | O40: 6 | P40: 41 | Q40: 4 | X40: Heidebloem 5 | Y40: =Heidebloem!U24 -> 0
A41: 38 | B41: René Ververs | C41: 1 | D41: 209 | E41: 10 | F41: 9 | G41: 10 | H41: 8 | I41: 9 | J41: 46 | K41: 8 | L41: 9 | M41: 8 | N41: 7 | O41: 6 | P41: 38 | Q41: 1 | X41: Heideroosje 9 | Y41: =Heideroosje!U28 -> 0
A42: 39 | B42: Johan van Rijt | C42: 1 | D42: 208 | E42: 10 | F42: 10 | G42: 8 | H42: 9 | I42: 9 | J42: 46 | K42: 8 | L42: 7 | M42: 9 | N42: 9 | O42: 9 | P42: 42 | Q42: 4 | X42: Heideroosje 10 | Y42: =Heideroosje!U29 -> 0
A43: 40 | B43: Marc Schaareman | C43: 1 | D43: 208 | E43: 9 | F43: 8 | G43: 10 | H43: 9 | I43: 8 | J43: 44 | K43: 8 | L43: 8 | M43: 7 | N43: 9 | O43: 9 | P43: 41 | Q43: 1
A44: 41 | B44: Mike Sijbers | C44: 5 | D44: 208 | E44: 10 | F44: 8 | G44: 7 | H44: 10 | I44: 9 | J44: 44 | K44: 9 | L44: 1 | M44: 6 | N44: 10 | O44: 7 | P44: 33 | Q44: 5
A45: 42 | B45: Olga Sijbers | C45: 5 | D45: 208 | E45: 10 | F45: 9 | G45: 9 | H45: 8 | I45: 8 | J45: 44 | K45: 7 | L45: 10 | M45: 7 | N45: 8 | O45: 7 | P45: 39 | Q45: 5
A46: 43 | B46: Nard Roost | C46: 1 | D46: 205 | E46: 10 | F46: 9 | G46: 7 | H46: 10 | I46: 9 | J46: 45 | K46: 8 | L46: 7 | M46: 7 | N46: 8 | O46: 9 | P46: 39 | Q46: 4
A47: 44 | B47: Ad Goossens | C47: 3 | D47: 204 | E47: 9 | F47: 9 | G47: 10 | H47: 10 | I47: 10 | J47: 48 | K47: 9 | L47: 9 | M47: 10 | N47: 10 | O47: 10 | P47: 48 | Q47: 4
A48: 45 | B48: Thieu Jeurninck | C48: 3 | D48: 204 | E48: 10 | F48: 8 | G48: 9 | H48: 7 | I48: 8 | J48: 42 | K48: 7 | L48: 8 | M48: 9 | N48: 8 | O48: 9 | P48: 41 | Q48: 3
A49: 46 | B49: Harold Janshen | C49: 1 | D49: 204 | E49: 8 | F49: 10 | G49: 7 | H49: 10 | I49: 9 | J49: 44 | K49: 7 | L49: 9 | M49: 8 | N49: 8 | O49: 8 | P49: 40 | Q49: 1
A50: 47 | B50: Quin Hendriks | C50: 5 | D50: 202 | E50: 8 | F50: 10 | G50: 8 | H50: 10 | I50: 8 | J50: 44 | K50: 8 | L50: 9 | M50: 9 | O50: 10 | P50: 36 | Q50: 3
A51: 48 | B51: Ria Walschot | C51: 2 | D51: 202 | E51: 7 | F51: 7 | G51: 9 | H51: 10 | I51: 8 | J51: 41 | K51: 7 | L51: 8 | M51: 9 | N51: 8 | O51: 9 | P51: 41 | Q51: 5
A52: 49 | B52: Wim Janssen | C52: 3 | D52: 202 | E52: 9 | F52: 9 | G52: 10 | H52: 8 | I52: 8 | J52: 44 | K52: 10 | L52: 6 | M52: 10 | N52: 10 | O52: 7 | P52: 43 | Q52: 5
A53: 50 | B53: Fred Janssen | C53: 1 | D53: 202 | E53: 8 | F53: 7 | G53: 10 | H53: 9 | I53: 10 | J53: 44 | K53: 10 | L53: 7 | M53: 6 | N53: 7 | O53: 3 | P53: 33 | Q53: 5
A54: 51 | B54: Rymon van Horne | C54: 1 | D54: 201 | E54: 9 | F54: 10 | G54: 8 | H54: 10 | I54: 6 | J54: 43 | K54: 9 | L54: 10 | M54: 8 | N54: 10 | O54: 6 | P54: 43 | Q54: 4
A55: 52 | B55: Brianne Ghielen | C55: 5 | D55: 200 | E55: 10 | F55: 9 | G55: 9 | H55: 9 | I55: 9 | J55: 46 | K55: 7 | L55: 6 | M55: 7 | N55: 8 | O55: 5 | P55: 33 | Q55: 5
A56: 53 | B56: Lowie Claessen | C56: 3 | D56: 199 | E56: 7 | F56: 8 | G56: 8 | H56: 9 | I56: 10 | J56: 42 | K56: 9 | L56: 8 | M56: 7 | N56: 8 | O56: 8 | P56: 40 | Q56: 4
A57: 54 | B57: Hans Sijbers | C57: 1 | D57: 198 | E57: 8 | F57: 9 | G57: 6 | H57: 10 | I57: 9 | J57: 42 | K57: 8 | L57: 9 | M57: 6 | N57: 10 | O57: 9 | P57: 42 | Q57: 5
A58: 55 | B58: Jan Ottenheim | C58: 3 | D58: 196 | E58: 10 | F58: 7 | G58: 8 | H58: 10 | I58: 8 | J58: 43 | K58: 5 | L58: 8 | M58: 8 | N58: 4 | O58: 8 | P58: 33 | Q58: 5
A59: 56 | B59: Jeroen van Nispen | C59: 5 | D59: 195 | E59: 8 | F59: 9 | G59: 8 | H59: 10 | I59: 9 | J59: 44 | K59: 8 | L59: 8 | M59: 7 | N59: 9 | O59: 10 | P59: 42 | Q59: 3
A60: 57 | B60: Koos Heijnen | C60: 1 | D60: 195 | E60: 10 | F60: 9 | G60: 7 | H60: 7 | I60: 10 | J60: 43 | K60: 6 | L60: 6 | M60: 9 | O60: 9 | P60: 30 | Q60: 1
A61: 58 | B61: Maurice Linders | C61: 1 | D61: 195 | E61: 7 | F61: 10 | G61: 8 | H61: 8 | I61: 9 | J61: 42 | K61: 9 | L61: 8 | M61: 6 | N61: 9 | O61: 8 | P61: 40 | Q61: 5
A62: 59 | B62: Pascal Hendriks | C62: 1 | D62: 194 | E62: 9 | F62: 8 | G62: 10 | H62: 10 | I62: 10 | J62: 47 | K62: 8 | M62: 9 | N62: 9 | O62: 8 | P62: 34 | Q62: 3
A63: 60 | B63: Sjeng Boonen | C63: 1 | D63: 193 | E63: 8 | F63: 7 | G63: 8 | H63: 9 | I63: 9 | J63: 41 | K63: 8 | L63: 7 | M63: 8 | N63: 9 | O63: 9 | P63: 41 | Q63: 3
A64: 61 | B64: Petra Joosten | C64: 2 | D64: 192 | E64: 7 | F64: 10 | G64: 9 | H64: 9 | I64: 8 | J64: 43 | K64: 7 | L64: 8 | M64: 8 | N64: 9 | O64: 9 | P64: 41 | Q64: 5
A65: 62 | B65: Huub Korsten | C65: 1 | D65: 192 | E65: 9 | F65: 9 | G65: 10 | H65: 7 | I65: 10 | J65: 45 | K65: 9 | L65: 9 | M65: 7 | N65: 7 | O65: 9 | P65: 41 | Q65: 5
A66: 63 | B66: Douwe Grenzenberg | C66: 1 | D66: 192 | E66: 9 | F66: 7 | G66: 9 | H66: 9 | I66: 8 | J66: 42 | K66: 8 | L66: 6 | M66: 8 | N66: 8 | O66: 5 | P66: 35 | Q66: 3
A67: 64 | B67: Wesley Hendriks | C67: 1 | D67: 190 | E67: 10 | F67: 8 | G67: 8 | H67: 9 | I67: 7 | J67: 42 | K67: 9 | L67: 7 | M67: 9 | N67: 10 | O67: 6 | P67: 41 | Q67: 3
A68: 65 | B68: Jo Caalders | C68: 3 | D68: 189 | E68: 9 | F68: 10 | G68: 6 | H68: 10 | I68: 8 | J68: 43 | K68: 5 | L68: 6 | M68: 10 | N68: 9 | O68: 9 | P68: 39 | Q68: 2
A69: 66 | B69: Ben Geraets | C69: 4 | D69: 188 | E69: 9 | F69: 7 | G69: 9 | H69: 9 | I69: 9 | J69: 43 | K69: 9 | L69: 7 | M69: 9 | N69: 9 | O69: 9 | P69: 43 | Q69: 1
A70: 67 | B70: Harry Moonen | C70: 1 | D70: 188 | E70: 9 | F70: 9 | G70: 8 | H70: 7 | I70: 7 | J70: 40 | K70: 9 | L70: 8 | M70: 8 | N70: 7 | O70: 7 | P70: 39 | Q70: 5
A71: 68 | B71: Amber Lammers | C71: 2 | D71: 187 | E71: 9 | F71: 9 | G71: 7 | H71: 10 | I71: 9 | J71: 44 | K71: 7 | L71: 5 | M71: 7 | N71: 6 | O71: 9 | P71: 34 | Q71: 1
A72: 69 | B72: Jo van Rijt | C72: 3 | D72: 184 | E72: 9 | F72: 9 | G72: 10 | H72: 9 | I72: 10 | J72: 47 | K72: 9 | L72: 9 | M72: 10 | N72: 9 | O72: 10 | P72: 47 | Q72: 4
A73: 70 | B73: Diana Sijbers | C73: 2 | D73: 180 | E73: 6 | F73: 7 | G73: 9 | H73: 8 | I73: 9 | J73: 39 | K73: 5 | L73: 8 | M73: 8 | N73: 9 | O73: 7 | P73: 37 | Q73: 5
A74: 71 | B74: Martin Damen | C74: 1 | D74: 178 | E74: 8 | F74: 9 | G74: 8 | H74: 8 | I74: 8 | J74: 41 | K74: 8 | L74: 8 | M74: 7 | N74: 3 | O74: 10 | P74: 36 | Q74: 2
A75: 72 | B75: Wim Hendriks | C75: 1 | D75: 178 | E75: 7 | F75: 8 | G75: 8 | H75: 10 | I75: 9 | J75: 42 | K75: 2 | L75: 7 | M75: 8 | N75: 7 | O75: 6 | P75: 30 | Q75: 3
A76: 73 | B76: Frits Levels | C76: 3 | D76: 175 | E76: 8 | F76: 5 | G76: 9 | H76: 8 | I76: 10 | J76: 40 | K76: 7 | L76: 8 | M76: 9 | N76: 7 | O76: 6 | P76: 37 | Q76: 4
A77: 74 | B77: Piet Gommans | C77: 3 | D77: 174 | E77: 10 | F77: 6 | G77: 8 | H77: 8 | I77: 6 | J77: 38 | K77: 9 | L77: 8 | M77: 5 | N77: 6 | O77: 8 | P77: 36 | Q77: 3
A78: 75 | B78: Fried Fijten | C78: 3 | D78: 173 | E78: 4 | F78: 8 | G78: 7 | H78: 8 | I78: 10 | J78: 37 | K78: 4 | L78: 8 | M78: 7 | N78: 8 | O78: 10 | P78: 37 | Q78: 5
A79: 76 | B79: Elliy Glim | C79: 3 | D79: 172 | E79: 10 | F79: 8 | G79: 6 | H79: 9 | I79: 6 | J79: 39 | K79: 5 | L79: 7 | M79: 9 | N79: 7 | O79: 8 | P79: 36 | Q79: 4
A80: 77 | B80: Rien van Hugten | C80: 1 | D80: 170 | E80: 10 | F80: 7 | G80: 6 | H80: 8 | I80: 9 | J80: 40 | K80: 5 | L80: 8 | M80: 6 | N80: 6 | O80: 5 | P80: 30 | Q80: 4
A81: 78 | B81: Nard Peeters | C81: 1 | D81: 169 | E81: 8 | F81: 7 | G81: 6 | H81: 7 | I81: 9 | J81: 37 | K81: 7 | L81: 5 | M81: 8 | N81: 4 | O81: 8 | P81: 32 | Q81: 4
A82: 79 | B82: Willem-Jan Timmermans | C82: 1 | D82: 163 | E82: 5 | F82: 8 | G82: 8 | H82: 7 | I82: 10 | J82: 38 | K82: 5 | L82: 8 | M82: 8 | N82: 7 | O82: 10 | P82: 38 | Q82: 1
A83: 80 | B83: Peter van Ratingen | C83: 1 | D83: 162 | E83: 7 | F83: 9 | H83: 9 | I83: 8 | J83: 33 | K83: 9 | L83: 9 | N83: 8 | O83: 5 | P83: 31 | Q83: 4
A84: 81 | B84: Carolien van Dijk | C84: 2 | D84: 156 | E84: 7 | F84: 9 | G84: 6 | H84: 8 | I84: 6 | J84: 36 | K84: 8 | L84: 5 | M84: 4 | N84: 5 | O84: 9 | P84: 31 | Q84: 5
A85: 82 | B85: Jose Korsten | C85: 2 | D85: 156 | E85: 7 | F85: 7 | G85: 6 | H85: 10 | I85: 8 | J85: 38 | K85: 7 | L85: 7 | M85: 8 | N85: 5 | O85: 5 | P85: 32 | Q85: 5
A86: 83 | B86: Nikki Wetjens | C86: 2 | D86: 155 | E86: 8 | F86: 8 | G86: 7 | H86: 10 | I86: 5 | J86: 38 | K86: 8 | L86: 6 | M86: 4 | N86: 5 | O86: 7 | P86: 30 | Q86: 1
A87: 84 | B87: Mike Dekker | C87: 1 | D87: 154 | E87: 9 | F87: 8 | G87: 7 | H87: 8 | I87: 8 | J87: 40 | K87: 8 | L87: 8 | M87: 6 | N87: 7 | O87: 5 | P87: 34 | Q87: 2
A88: 85 | B88: Thei Peeters | C88: 3 | D88: 142 | E88: 7 | F88: 9 | G88: 8 | H88: 8 | I88: 8 | J88: 40 | K88: 7 | L88: 9 | M88: 8 | N88: 8 | O88: 8 | P88: 40 | Q88: 5
A89: 86 | B89: Myrthe Das | C89: 5 | D89: 135 | E89: 8 | F89: 7 | G89: 7 | H89: 7 | I89: 6 | J89: 35 | K89: 7 | L89: 5 | M89: 6 | N89: 5 | O89: 8 | P89: 31 | Q89: 5
A90: 87 | B90: Fabienne v/d Dungen | C90: 5 | D90: 131 | E90: 9 | F90: 9 | G90: 7 | H90: 5 | I90: 7 | J90: 37 | K90: 5 | L90: 5 | M90: 4 | N90: 3 | O90: 9 | P90: 26 | Q90: 5
A91: 88 | B91: Mike Koper | C91: 1 | D91: 115 | E91: 4 | F91: 7 | G91: 7 | H91: 5 | I91: 4 | J91: 27 | K91: 4 | L91: 7 | M91: 7 | N91: 5 | O91: 4 | P91: 27 | Q91: 5
A92: 89 | B92: Paulien v/d Beuken | C92: 2 | D92: 98 | E92: 4 | F92: 6 | G92: 7 | H92: 7 | I92: 4 | J92: 28 | K92: 4 | L92: 9 | M92: 2 | N92: 6 | O92: 1 | P92: 22 | Q92: 2
A93: 90 | B93: Wim Peeters | C93: 1 | D93: 93 | E93: 1 | F93: 5 | G93: 6 | H93: 5 | I93: 6 | J93: 23 | K93: 1 | L93: 5 | M93: 6 | N93: 5 | O93: 6 | P93: 23 | Q93: 2
A94: 91 | B94: Wil Luijten | C94: 1 | J94: 0 | P94: 0 | Q94: 2
A95: 92 | B95: Desiréé Lommen | C95: 2 | J95: 0 | P95: 0 | Q95: 4
A96: 93 | B96: Ger Levels | C96: 1 | J96: 0 | P96: 0 | Q96: 4
A97: 94 | B97: Theij Verdonschot | C97: 3 | J97: 0 | P97: 0 | Q97: 4
A98: 95 | B98: Rian Jeurninck | C98: 2 | J98: 0 | P98: 0 | Q98: 5
A99: 96 | B99: Stephan Ghielen | C99: 4 | J99: 0 | P99: 0 | Q99: 5
A100: 97 | B100: Silfran Ghielen | C100: 1 | J100: 0 | P100: 0 | Q100: 5
A101: 98 | B101: Aron Smolenaars | C101: 4 | J101: 0 | P101: 0 | Q101: 1
A102: 99 | B102: Danielle Heijnen | C102: 2 | J102: 0 | P102: 0 | Q102: 1
A103: 100 | B103: Mark Vossen | C103: 5 | J103: 0 | P103: 0 | Q103: 1
A104: 101 | B104: Martijn Janssen | C104: 1 | J104: 0 | P104: 0 | Q104: 3
A105: 102 | B105: Sjaak Clephas | C105: 3 | J105: 0 | P105: 0 | Q105: 3
A106: 103 | B106: Rob van Nispen | C106: 4 | J106: 0 | P106: 0 | Q106: 3
A107: 104
A108: 105
A109: 106
A110: 107
A111: 108
A112: 109
A113: 110
A114: 111
A115: 112
A116: 113
A117: 114
A118: 115
A119: 116
A120: 117
A121: 118
A122: 119
A123: 120
A124: 121
A125: 122
A126: 123
A127: 124
A128: 125
A129: 126

Sheet Personele prijzen
A1: Persoonlijke Uitslag
A3: Groep A - 250 t/m 213 punten
E4: Hoogste serie
A5: Positie | B5: Naam | C5: Klasse | D5: Punten | E5: 1 | F5: 2 | G5: 3 | H5: 4 | I5: 5 | J5: Totaal | K5: Totaal2
A6: 3 | B6: Edwin Joosten | C6: 1 | D6: 233 | E6: 10 | F6: 10 | G6: 10 | H6: 10 | I6: 10 | J6: 50 | K6: 45
A7: 1 | B7: Steve Wijler | C7: 1 | D7: 244 | E7: 9 | F7: 10 | G7: 10 | H7: 10 | I7: 10 | J7: 49 | K7: 49
A8: 2 | B8: Frank Hoogmans | C8: 1 | D8: 239 | E8: 9 | F8: 10 | G8: 10 | H8: 10 | I8: 10 | J8: 49 | K8: 48
A9: 4 | B9: Rik van den Beuken | C9: 1 | D9: 233 | E9: 9 | F9: 10 | G9: 10 | H9: 10 | I9: 10 | J9: 49 | K9: 45
A10: 7 | B10: Kevin Slaats | C10: 1 | D10: 228 | E10: 10 | F10: 10 | G10: 9 | H10: 9 | I10: 10 | J10: 48 | K10: 46
A11: 8 | B11: Sabine van Rijt | C11: 2 | D11: 227 | E11: 9 | F11: 10 | G11: 10 | H11: 10 | I11: 9 | J11: 48 | K11: 48
A12: 11 | B12: Jo Peeters | C12: 3 | D12: 222 | E12: 9 | F12: 10 | G12: 10 | H12: 10 | I12: 9 | J12: 48 | K12: 47
A13: 22 | B13: Etienne Deckers | C13: 1 | D13: 217 | E13: 8 | F13: 9 | G13: 10 | H13: 10 | I13: 10 | J13: 47 | K13: 43
A14: 23 | B14: Jos Bongers | C14: 1 | D14: 216 | E14: 8 | F14: 10 | G14: 9 | H14: 10 | I14: 10 | J14: 47 | K14: 47
A15: 15 | B15: Theo Pijls | C15: 3 | D15: 220 | E15: 10 | F15: 8 | G15: 9 | H15: 10 | I15: 10 | J15: 47 | K15: 47
A16: 9 | B16: Huib Salimans | C16: 1 | D16: 227 | E16: 9 | F16: 9 | G16: 10 | H16: 9 | I16: 10 | J16: 47 | K16: 47
A17: 27 | B17: Cor Joosten | C17: 1 | D17: 215 | E17: 10 | F17: 8 | G17: 10 | H17: 9 | I17: 10 | J17: 47 | K17: 40
A18: 5 | B18: Ben Koper | C18: 1 | D18: 229 | E18: 9 | F18: 10 | G18: 9 | H18: 9 | I18: 10 | J18: 47 | K18: 47
A19: 16 | B19: Har Luijten | C19: 3 | D19: 218 | E19: 10 | F19: 9 | G19: 9 | H19: 9 | I19: 10 | J19: 47 | K19: 47
A20: 10 | B20: Peter Verstappen | C20: 3 | D20: 223 | E20: 9 | F20: 9 | G20: 10 | H20: 10 | I20: 9 | J20: 47 | K20: 45
A21: 6 | B21: Henk Smolenaars | C21: 1 | D21: 228 | E21: 10 | F21: 9 | G21: 9 | H21: 10 | I21: 9 | J21: 47 | K21: 45
A22: 14 | B22: Jeroen Verschuren | C22: 1 | D22: 222 | E22: 10 | F22: 10 | G22: 10 | H22: 9 | I22: 8 | J22: 47 | K22: 47
A23: 12 | B23: Jac Gielen | C23: 1 | D23: 222 | E23: 8 | F23: 9 | G23: 9 | H23: 10 | I23: 10 | J23: 46 | K23: 44
A24: 18 | B24: Maikel Boumans | C24: 1 | D24: 218 | E24: 9 | F24: 8 | G24: 9 | H24: 10 | I24: 10 | J24: 46 | K24: 46
A25: 26 | B25: Gerard v/d Beuken | C25: 1 | D25: 215 | E25: 10 | F25: 8 | G25: 9 | H25: 9 | I25: 10 | J25: 46 | K25: 43
A26: 20 | B26: Lau Geraets | C26: 1 | D26: 217 | E26: 10 | F26: 9 | G26: 9 | H26: 9 | I26: 9 | J26: 46 | K26: 44
A27: 25 | B27: Marcel Walschot | C27: 1 | D27: 215 | E27: 10 | F27: 9 | G27: 9 | H27: 9 | I27: 9 | J27: 46 | K27: 41
A28: 24 | B28: Math Crins | C28: 1 | D28: 216 | E28: 10 | F28: 10 | G28: 10 | H28: 8 | I28: 8 | J28: 46 | K28: 44
A29: 17 | B29: Jan Sijbers | C29: 1 | D29: 218 | E29: 8 | F29: 8 | G29: 9 | H29: 10 | I29: 10 | J29: 45 | K29: 45
A30: 19 | B30: Lowie Joosten | C30: 3 | D30: 218 | E30: 10 | F30: 8 | G30: 8 | H30: 9 | I30: 10 | J30: 45 | K30: 44
A31: 13 | B31: Leo Pijls | C31: 1 | D31: 222 | E31: 9 | F31: 8 | G31: 9 | H31: 10 | I31: 9 | J31: 45 | K31: 43
A32: 21 | B32: Marc Simons | C32: 1 | D32: 217 | E32: 9 | F32: 8 | G32: 9 | H32: 10 | I32: 9 | J32: 45 | K32: 45
A33: 29 | B33: Rob Schaareman | C33: 1 | D33: 214 | E33: 10 | F33: 7 | G33: 9 | H33: 10 | I33: 9 | J33: 45 | K33: 45
A34: 30 | B34: Jasper Stokmans | C34: 4 | D34: 213 | E34: 10 | F34: 9 | G34: 9 | H34: 9 | I34: 8 | J34: 45 | K34: 43
A35: 31 | B35: Piet van Roy | C35: 3 | D35: 213 | E35: 7 | F35: 10 | G35: 10 | H35: 9 | I35: 8 | J35: 44 | K35: 42
A36: 28 | B36: Michael Simons | C36: 1 | D36: 215 | E36: 10 | F36: 10 | G36: 8 | H36: 10 | I36: 6 | J36: 44 | K36: 42
A38: Groep B - 212 t/m 186 punten | E38: Hoogste serie
A39: Positie | B39: Naam | C39: Klasse | D39: Punten | E39: 1 | F39: 2 | G39: 3 | H39: 4 | I39: 5 | J39: Totaal | K39: Totaal2
A40: 44 | B40: Ad Goossens | C40: 3 | D40: 204 | E40: 9 | F40: 9 | G40: 10 | H40: 10 | I40: 10 | J40: 48 | K40: 48
A41: 59 | B41: Pascal Hendriks | C41: 1 | D41: 194 | E41: 9 | F41: 8 | G41: 10 | H41: 10 | I41: 10 | J41: 47 | K41: 34
A42: 36 | B42: Wiel Boonen | C42: 3 | D42: 210 | E42: 10 | F42: 9 | G42: 8 | H42: 9 | I42: 10 | J42: 46 | K42: 39
A43: 37 | B43: Wim Verstappen | C43: 1 | D43: 210 | E43: 10 | F43: 9 | G43: 9 | H43: 9 | I43: 9 | J43: 46 | K43: 41
A44: 52 | B44: Brianne Ghielen | C44: 5 | D44: 200 | E44: 10 | F44: 9 | G44: 9 | H44: 9 | I44: 9 | J44: 46 | K44: 33
A45: 39 | B45: Johan van Rijt | C45: 1 | D45: 208 | E45: 10 | F45: 10 | G45: 8 | H45: 9 | I45: 9 | J45: 46 | K45: 42
A46: 38 | B46: René Ververs | C46: 1 | D46: 209 | E46: 10 | F46: 9 | G46: 10 | H46: 8 | I46: 9 | J46: 46 | K46: 38
A47: 33 | B47: Jan Derks | C47: 3 | D47: 212 | E47: 10 | F47: 9 | G47: 10 | H47: 9 | I47: 8 | J47: 46 | K47: 46
A48: 35 | B48: Peter Joosten | C48: 3 | D48: 210 | E48: 9 | F48: 9 | G48: 10 | H48: 7 | I48: 10 | J48: 45 | K48: 45
A49: 62 | B49: Huub Korsten | C49: 1 | D49: 192 | E49: 9 | F49: 9 | G49: 10 | H49: 7 | I49: 10 | J49: 45 | K49: 41
A50: 43 | B50: Nard Roost | C50: 1 | D50: 205 | E50: 10 | F50: 9 | G50: 7 | H50: 10 | I50: 9 | J50: 45 | K50: 39
A51: 50 | B51: Fred Janssen | C51: 1 | D51: 202 | E51: 8 | F51: 7 | G51: 10 | H51: 9 | I51: 10 | J51: 44 | K51: 33
A52: 56 | B52: Jeroen van Nispen | C52: 5 | D52: 195 | E52: 8 | F52: 9 | G52: 8 | H52: 10 | I52: 9 | J52: 44 | K52: 42
A53: 46 | B53: Harold Janshen | C53: 1 | D53: 204 | E53: 8 | F53: 10 | G53: 7 | H53: 10 | I53: 9 | J53: 44 | K53: 40
A54: 68 | B54: Amber Lammers | C54: 2 | D54: 187 | E54: 9 | F54: 9 | G54: 7 | H54: 10 | I54: 9 | J54: 44 | K54: 34
A55: 41 | B55: Mike Sijbers | C55: 5 | D55: 208 | E55: 10 | F55: 8 | G55: 7 | H55: 10 | I55: 9 | J55: 44 | K55: 33
A56: 34 | B56: Peter Mennen | C56: 1 | D56: 211 | E56: 9 | F56: 8 | G56: 9 | H56: 9 | I56: 9 | J56: 44 | K56: 42
A57: 32 | B57: Huub Sijbers | C57: 1 | D57: 212 | E57: 10 | F57: 9 | G57: 9 | H57: 7 | I57: 9 | J57: 44 | K57: 44
A58: 47 | B58: Quin Hendriks | C58: 5 | D58: 202 | E58: 8 | F58: 10 | G58: 8 | H58: 10 | I58: 8 | J58: 44 | K58: 36
A59: 40 | B59: Marc Schaareman | C59: 1 | D59: 208 | E59: 9 | F59: 8 | G59: 10 | H59: 9 | I59: 8 | J59: 44 | K59: 41
A60: 49 | B60: Wim Janssen | C60: 3 | D60: 202 | E60: 9 | F60: 9 | G60: 10 | H60: 8 | I60: 8 | J60: 44 | K60: 43
A61: 42 | B61: Olga Sijbers | C61: 5 | D61: 208 | E61: 10 | F61: 9 | G61: 9 | H61: 8 | I61: 8 | J61: 44 | K61: 39
A62: 57 | B62: Koos Heijnen | C62: 1 | D62: 195 | E62: 10 | F62: 9 | G62: 7 | H62: 7 | I62: 10 | J62: 43 | K62: 30
A63: 66 | B63: Ben Geraets | C63: 4 | D63: 188 | E63: 9 | F63: 7 | G63: 9 | H63: 9 | I63: 9 | J63: 43 | K63: 43
A64: 55 | B64: Jan Ottenheim | C64: 3 | D64: 196 | E64: 10 | F64: 7 | G64: 8 | H64: 10 | I64: 8 | J64: 43 | K64: 33
A65: 65 | B65: Jo Caalders | C65: 3 | D65: 189 | E65: 9 | F65: 10 | G65: 6 | H65: 10 | I65: 8 | J65: 43 | K65: 39
A66: 61 | B66: Petra Joosten | C66: 2 | D66: 192 | E66: 7 | F66: 10 | G66: 9 | H66: 9 | I66: 8 | J66: 43 | K66: 41
A67: 51 | B67: Rymon van Horne | C67: 1 | D67: 201 | E67: 9 | F67: 10 | G67: 8 | H67: 10 | I67: 6 | J67: 43 | K67: 43
A68: 53 | B68: Lowie Claessen | C68: 3 | D68: 199 | E68: 7 | F68: 8 | G68: 8 | H68: 9 | I68: 10 | J68: 42 | K68: 40
A69: 54 | B69: Hans Sijbers | C69: 1 | D69: 198 | E69: 8 | F69: 9 | G69: 6 | H69: 10 | I69: 9 | J69: 42 | K69: 42
A70: 58 | B70: Maurice Linders | C70: 1 | D70: 195 | E70: 7 | F70: 10 | G70: 8 | H70: 8 | I70: 9 | J70: 42 | K70: 40
A71: 63 | B71: Douwe Grenzenberg | C71: 1 | D71: 192 | E71: 9 | F71: 7 | G71: 9 | H71: 9 | I71: 8 | J71: 42 | K71: 35
A72: 45 | B72: Thieu Jeurninck | C72: 3 | D72: 204 | E72: 10 | F72: 8 | G72: 9 | H72: 7 | I72: 8 | J72: 42 | K72: 41
A73: 64 | B73: Wesley Hendriks | C73: 1 | D73: 190 | E73: 10 | F73: 8 | G73: 8 | H73: 9 | I73: 7 | J73: 42 | K73: 41
A74: 60 | B74: Sjeng Boonen | C74: 1 | D74: 193 | E74: 8 | F74: 7 | G74: 8 | H74: 9 | I74: 9 | J74: 41 | K74: 41
A75: 48 | B75: Ria Walschot | C75: 2 | D75: 202 | E75: 7 | F75: 7 | G75: 9 | H75: 10 | I75: 8 | J75: 41 | K75: 41
A76: 67 | B76: Harry Moonen | C76: 1 | D76: 188 | E76: 9 | F76: 9 | G76: 8 | H76: 7 | I76: 7 | J76: 40 | K76: 39
A78: Groep C - 185 t/m 151 punten | E78: Hoogste serie
A79: Positie | B79: Naam | C79: Klasse | D79: Punten | E79: 1 | F79: 2 | G79: 3 | H79: 4 | I79: 5 | J79: Totaal | K79: Totaal2
A80: 69 | B80: Jo van Rijt | C80: 3 | D80: 184 | E80: 9 | F80: 9 | G80: 10 | H80: 9 | I80: 10 | J80: 47 | K80: 47
A81: 72 | B81: Wim Hendriks | C81: 1 | D81: 178 | E81: 7 | F81: 8 | G81: 8 | H81: 10 | I81: 9 | J81: 42 | K81: 30
A82: 2 | B82: Bram Walschot | C82: N.V.T. | D82: 173 | E82: 7 | F82: 9 | G82: 9 | H82: 8 | I82: 9 | J82: 42 | K82: 30
A83: 1 | B83: Loek Hendriks | C83: N.V.T. | D83: 177 | E83: 7 | F83: 10 | G83: 10 | H83: 8 | I83: 7 | J83: 42 | K83: 29
A84: 71 | B84: Martin Damen | C84: 1 | D84: 178 | E84: 8 | F84: 9 | G84: 8 | H84: 8 | I84: 8 | J84: 41 | K84: 36
A85: 73 | B85: Frits Levels | C85: 3 | D85: 175 | E85: 8 | F85: 5 | G85: 9 | H85: 8 | I85: 10 | J85: 40 | K85: 37
A86: 77 | B86: Rien van Hugten | C86: 1 | D86: 170 | E86: 10 | F86: 7 | G86: 6 | H86: 8 | I86: 9 | J86: 40 | K86: 30
A87: 84 | B87: Mike Dekker | C87: 1 | D87: 154 | E87: 9 | F87: 8 | G87: 7 | H87: 8 | I87: 8 | J87: 40 | K87: 34
A88: 70 | B88: Diana Sijbers | C88: 2 | D88: 180 | E88: 6 | F88: 7 | G88: 9 | H88: 8 | I88: 9 | J88: 39 | K88: 37
A89: 76 | B89: Elliy Glim | C89: 3 | D89: 172 | E89: 10 | F89: 8 | G89: 6 | H89: 9 | I89: 6 | J89: 39 | K89: 36
A90: 79 | B90: Willem-Jan Timmermans | C90: 1 | D90: 163 | E90: 5 | F90: 8 | G90: 8 | H90: 7 | I90: 10 | J90: 38 | K90: 38
A91: 82 | B91: Jose Korsten | C91: 2 | D91: 156 | E91: 7 | F91: 7 | G91: 6 | H91: 10 | I91: 8 | J91: 38 | K91: 32
A92: 74 | B92: Piet Gommans | C92: 3 | D92: 174 | E92: 10 | F92: 6 | G92: 8 | H92: 8 | I92: 6 | J92: 38 | K92: 36
A93: 83 | B93: Nikki Wetjens | C93: 2 | D93: 155 | E93: 8 | F93: 8 | G93: 7 | H93: 10 | I93: 5 | J93: 38 | K93: 30
A94: 75 | B94: Fried Fijten | C94: 3 | D94: 173 | E94: 4 | F94: 8 | G94: 7 | H94: 8 | I94: 10 | J94: 37 | K94: 37
A95: 78 | B95: Nard Peeters | C95: 1 | D95: 169 | E95: 8 | F95: 7 | G95: 6 | H95: 7 | I95: 9 | J95: 37 | K95: 32
A96: 81 | B96: Carolien van Dijk | C96: 2 | D96: 156 | E96: 7 | F96: 9 | G96: 6 | H96: 8 | I96: 6 | J96: 36 | K96: 31
A97: 80 | B97: Peter van Ratingen | C97: 1 | D97: 162 | E97: 7 | F97: 9 | H97: 9 | I97: 8 | J97: 33 | K97: 31
A99: Groep D - 150 t/m 0 punten | E99: Hoogste serie
A100: Positie | B100: Naam | C100: Klasse | D100: Punten | E100: 1 | F100: 2 | G100: 3 | H100: 4 | I100: 5 | J100: Totaal | K100: Totaal2
A101: 85 | B101: Thei Peeters | C101: 3 | D101: 142 | E101: 7 | F101: 9 | G101: 8 | H101: 8 | I101: 8 | J101: 40 | K101: 40
A102: 87 | B102: Fabienne v/d Dungen | C102: 5 | D102: 131 | E102: 9 | F102: 9 | G102: 7 | H102: 5 | I102: 7 | J102: 37 | K102: 26
A103: 3 | B103: Jorn Hendriks | C103: N.V.T. | D103: 146 | E103: 10 | F103: 4 | G103: 6 | H103: 10 | I103: 6 | J103: 36 | K103: 26
A104: 86 | B104: Myrthe Das | C104: 5 | D104: 135 | E104: 8 | F104: 7 | G104: 7 | H104: 7 | I104: 6 | J104: 35 | K104: 31
A105: 89 | B105: Paulien v/d Beuken | C105: 2 | D105: 98 | E105: 4 | F105: 6 | G105: 7 | H105: 7 | I105: 4 | J105: 28 | K105: 22
A106: 88 | B106: Mike Koper | C106: 1 | D106: 115 | E106: 4 | F106: 7 | G106: 7 | H106: 5 | I106: 4 | J106: 27 | K106: 27
A107: 90 | B107: Wim Peeters | C107: 1 | D107: 93 | E107: 1 | F107: 5 | G107: 6 | H107: 5 | I107: 6 | J107: 23 | K107: 23
A108: 91 | B108: Wil Luijten | C108: 1 | J108: 0 | K108: 0
A109: 92 | B109: Desiréé Lommen | C109: 2 | J109: 0 | K109: 0
A110: 93 | B110: Ger Levels | C110: 1 | J110: 0 | K110: 0
A111: 94 | B111: Theij Verdonschot | C111: 3 | J111: 0 | K111: 0
A112: 95 | B112: Rian Jeurninck | C112: 2 | J112: 0 | K112: 0
A113: 96 | B113: Stephan Ghielen | C113: 4 | J113: 0 | K113: 0
A114: 97 | B114: Silfran Ghielen | C114: 1 | J114: 0 | K114: 0
A115: 98 | B115: Aron Smolenaars | C115: 4 | J115: 0 | K115: 0
A116: 99 | B116: Danielle Heijnen | C116: 2 | J116: 0 | K116: 0
A117: 100 | B117: Mark Vossen | C117: 5 | J117: 0 | K117: 0
A118: 101 | B118: Martijn Janssen | C118: 1 | J118: 0 | K118: 0
A119: 102 | B119: Sjaak Clephas | C119: 3 | J119: 0 | K119: 0
A120: 103 | B120: Rob van Nispen | C120: 4 | J120: 0 | K120: 0
A121: 4 | C121: N.V.T. | J121: 0 | K121: 0
A122: 5 | C122: N.V.T. | J122: 0 | K122: 0
A123: 6 | C123: N.V.T. | J123: 0 | K123: 0
A124: 7 | C124: N.V.T. | J124: 0 | K124: 0
A125: 8 | C125: N.V.T. | J125: 0 | K125: 0
A126: 9 | C126: N.V.T. | J126: 0 | K126: 0
A127: 10 | C127: N.V.T. | J127: 0 | K127: 0
A128: 11 | C128: N.V.T. | J128: 0 | K128: 0
A129: 12 | C129: N.V.T. | J129: 0 | K129: 0
A130: 13 | C130: N.V.T. | J130: 0 | K130: 0
A131: 14 | C131: N.V.T. | J131: 0 | K131: 0
A132: 15 | C132: N.V.T. | J132: 0 | K132: 0
A133: 119
A134: 120
A135: 121
A136: 122
A137: 123
A138: 124
A139: 125
A140: 126

Sheet Ons Genoegen
B1: Ons Genoegen
E2: Hoogste serie | K2: Laatste pijlen*
A3: Positie | B3: Naam | C3: Klasse | D3: Punten | E3: 1 | F3: 2 | G3: 3 | H3: 4 | I3: 5 | J3: Totaal | K3: 21 | L3: 22 | M3: 23 | N3: 24 | O3: 25 | P3: Totaal2 | Q3: Club | S3: Klasse
A4: 1 | B4: Steve Wijler | C4: 1 | D4: 244 | E4: 9 | F4: 10 | G4: 10 | H4: 10 | I4: 10 | J4: =SUM(ScoresOnsGenoegen[[#This Row],[1]:[5]]) -> 49 | K4: 9 | L4: 10 | M4: 10 | N4: 10 | O4: 10 | P4: =SUM(ScoresOnsGenoegen[[#This Row],[21]:[25]]) -> 49 | Q4: 1 | S4: 1 | T4: Heren
A5: 2 | B5: Frank Hoogmans | C5: 1 | D5: 239 | E5: 9 | F5: 10 | G5: 10 | H5: 10 | I5: 10 | J5: =SUM(ScoresOnsGenoegen[[#This Row],[1]:[5]]) -> 49 | K5: 10 | L5: 9 | M5: 9 | N5: 10 | O5: 10 | P5: =SUM(ScoresOnsGenoegen[[#This Row],[21]:[25]]) -> 48 | Q5: 1 | S5: 2 | T5: Dames
A6: 3 | B6: Rik van den Beuken | C6: 1 | D6: 233 | E6: 9 | F6: 10 | G6: 10 | H6: 10 | I6: 10 | J6: =SUM(ScoresOnsGenoegen[[#This Row],[1]:[5]]) -> 49 | K6: 10 | L6: 9 | M6: 8 | N6: 9 | O6: 9 | P6: =SUM(ScoresOnsGenoegen[[#This Row],[21]:[25]]) -> 45 | Q6: 1 | S6: 3 | T6: Veteraan | V6: Van | W6: t/m
A7: 4 | B7: Henk Smolenaars | C7: 1 | D7: 228 | E7: 10 | F7: 9 | G7: 9 | H7: 10 | I7: 9 | J7: =SUM(ScoresOnsGenoegen[[#This Row],[1]:[5]]) -> 47 | K7: 8 | L7: 8 | M7: 10 | N7: 9 | O7: 10 | P7: =SUM(ScoresOnsGenoegen[[#This Row],[21]:[25]]) -> 45 | Q7: 1 | S7: 4 | T7: Jeugd t/m 18 | U7: Groep A | V7: =E101 -> 1998 | W7: =G101 -> 2000
A8: 5 | B8: Kevin Slaats | C8: 1 | D8: 228 | E8: 10 | F8: 10 | G8: 9 | H8: 9 | I8: 10 | J8: =SUM(ScoresOnsGenoegen[[#This Row],[1]:[5]]) -> 48 | K8: 9 | L8: 9 | M8: 10 | N8: 8 | O8: 10 | P8: =SUM(ScoresOnsGenoegen[[#This Row],[21]:[25]]) -> 46 | Q8: 1 | S8: 5 | T8: Jeugd t/m 15 | U8: Groep B | V8: =E102 -> 2001 | W8: =G102 -> 2003
A9: 6 | B9: Huib Salimans | C9: 1 | D9: 227 | E9: 9 | F9: 9 | G9: 10 | H9: 9 | I9: 10 | J9: =SUM(ScoresOnsGenoegen[[#This Row],[1]:[5]]) -> 47 | K9: 9 | L9: 9 | M9: 10 | N9: 10 | O9: 9 | P9: =SUM(ScoresOnsGenoegen[[#This Row],[21]:[25]]) -> 47 | Q9: 1
A10: 7 | B10: Leo Pijls | C10: 1 | D10: 222 | E10: 9 | F10: 8 | G10: 9 | H10: 10 | I10: 9 | J10: =SUM(ScoresOnsGenoegen[[#This Row],[1]:[5]]) -> 45 | K10: 9 | L10: 8 | M10: 8 | N10: 9 | O10: 9 | P10: =SUM(ScoresOnsGenoegen[[#This Row],[21]:[25]]) -> 43 | Q10: 1 | U10: ,
A11: 8 | B11: Theo Pijls | C11: 3 | D11: 220 | E11: 10 | F11: 8 | G11: 9 | H11: 10 | I11: 10 | J11: =SUM(ScoresOnsGenoegen[[#This Row],[1]:[5]]) -> 47 | K11: 10 | L11: 8 | M11: 9 | N11: 10 | O11: 10 | P11: =SUM(ScoresOnsGenoegen[[#This Row],[21]:[25]]) -> 47 | Q11: 1 | S11: Laatste pijlen
A12: 9 | B12: Lau Geraets | C12: 1 | D12: 217 | E12: 10 | F12: 9 | G12: 9 | H12: 9 | I12: 9 | J12: =SUM(ScoresOnsGenoegen[[#This Row],[1]:[5]]) -> 46 | K12: 9 | L12: 9 | M12: 8 | N12: 8 | O12: 10 | P12: =SUM(ScoresOnsGenoegen[[#This Row],[21]:[25]]) -> 44 | Q12: 1 | S12: Optioneel veld om automatisch sorteren mogelijk te maken
A13: 10 | B13: Jos Bongers | C13: 1 | D13: 216 | E13: 8 | F13: 10 | G13: 9 | H13: 10 | I13: 10 | J13: =SUM(ScoresOnsGenoegen[[#This Row],[1]:[5]]) -> 47 | K13: 8 | L13: 10 | M13: 9 | N13: 10 | O13: 10 | P13: =SUM(ScoresOnsGenoegen[[#This Row],[21]:[25]]) -> 47 | Q13: 1 | S13: Invullen zover nodig
A14: 11 | B14: Rob Schaareman | C14: 1 | D14: 214 | E14: 10 | F14: 7 | G14: 9 | H14: 10 | I14: 9 | J14: =SUM(ScoresOnsGenoegen[[#This Row],[1]:[5]]) -> 45 | K14: 10 | L14: 7 | M14: 9 | N14: 10 | O14: 9 | P14: =SUM(ScoresOnsGenoegen[[#This Row],[21]:[25]]) -> 45 | Q14: 1
A15: 12 | B15: Jasper Stokmans | C15: 4 | D15: 213 | E15: 10 | F15: 9 | G15: 9 | H15: 9 | I15: 8 | J15: =SUM(ScoresOnsGenoegen[[#This Row],[1]:[5]]) -> 45 | K15: 9 | L15: 8 | M15: 10 | N15: 8 | O15: 8 | P15: =SUM(ScoresOnsGenoegen[[#This Row],[21]:[25]]) -> 43 | Q15: 1 | S15: Uitslag maken
A16: 13 | B16: René Ververs | C16: 1 | D16: 209 | E16: 10 | F16: 9 | G16: 10 | H16: 8 | I16: 9 | J16: =SUM(ScoresOnsGenoegen[[#This Row],[1]:[5]]) -> 46 | K16: 8 | L16: 9 | M16: 8 | N16: 7 | O16: 6 | P16: =SUM(ScoresOnsGenoegen[[#This Row],[21]:[25]]) -> 38 | Q16: 1 | S16: Gebruik de knop 'Maak Uitslag' in het uitslagen tabblad om alle
A17: 14 | B17: Marc Schaareman | C17: 1 | D17: 208 | E17: 9 | F17: 8 | G17: 10 | H17: 9 | I17: 8 | J17: =SUM(ScoresOnsGenoegen[[#This Row],[1]:[5]]) -> 44 | K17: 8 | L17: 8 | M17: 7 | N17: 9 | O17: 9 | P17: =SUM(ScoresOnsGenoegen[[#This Row],[21]:[25]]) -> 41 | Q17: 1 | S17: tabbladen (incl. deze dus) te sorteren en een uitslag te maken
A18: 15 | B18: Harold Janshen | C18: 1 | D18: 204 | E18: 8 | F18: 10 | G18: 7 | H18: 10 | I18: 9 | J18: =SUM(ScoresOnsGenoegen[[#This Row],[1]:[5]]) -> 44 | K18: 7 | L18: 9 | M18: 8 | N18: 8 | O18: 8 | P18: =SUM(ScoresOnsGenoegen[[#This Row],[21]:[25]]) -> 40 | Q18: 1
A19: 16 | B19: Koos Heijnen | C19: 1 | D19: 195 | E19: 10 | F19: 9 | G19: 7 | H19: 7 | I19: 10 | J19: =SUM(ScoresOnsGenoegen[[#This Row],[1]:[5]]) -> 43 | K19: 6 | L19: 6 | M19: 9 | O19: 9 | P19: =SUM(ScoresOnsGenoegen[[#This Row],[21]:[25]]) -> 30 | Q19: 1 | S19: Team | U19: Punten
A20: 17 | B20: Ben Geraets | C20: 4 | D20: 188 | E20: 9 | F20: 7 | G20: 9 | H20: 9 | I20: 9 | J20: =SUM(ScoresOnsGenoegen[[#This Row],[1]:[5]]) -> 43 | K20: 9 | L20: 7 | M20: 9 | N20: 9 | O20: 9 | P20: =SUM(ScoresOnsGenoegen[[#This Row],[21]:[25]]) -> 43 | Q20: 1 | S20: =CONCATENATE($B$1," 1") -> Ons Genoegen 1 | U20: =SUM(D4:D9) -> 1399
A21: 18 | B21: Amber Lammers | C21: 2 | D21: 187 | E21: 9 | F21: 9 | G21: 7 | H21: 10 | I21: 9 | J21: =SUM(ScoresOnsGenoegen[[#This Row],[1]:[5]]) -> 44 | K21: 7 | L21: 5 | M21: 7 | N21: 6 | O21: 9 | P21: =SUM(ScoresOnsGenoegen[[#This Row],[21]:[25]]) -> 34 | Q21: 1 | S21: =CONCATENATE($B$1," 2") -> Ons Genoegen 2 | U21: =SUM(D10:D15) -> 1302
A22: 19 | B22: Willem-Jan Timmermans | C22: 1 | D22: 163 | E22: 5 | F22: 8 | G22: 8 | H22: 7 | I22: 10 | J22: =SUM(ScoresOnsGenoegen[[#This Row],[1]:[5]]) -> 38 | K22: 5 | L22: 8 | M22: 8 | N22: 7 | O22: 10 | P22: =SUM(ScoresOnsGenoegen[[#This Row],[21]:[25]]) -> 38 | Q22: 1 | S22: =CONCATENATE($B$1," 3") -> Ons Genoegen 3 | U22: =SUM(D16:D21) -> 1191
A23: 20 | B23: Nikki Wetjens | C23: 2 | D23: 155 | E23: 8 | F23: 8 | G23: 7 | H23: 10 | I23: 5 | J23: =SUM(ScoresOnsGenoegen[[#This Row],[1]:[5]]) -> 38 | K23: 8 | L23: 6 | M23: 4 | N23: 5 | O23: 7 | P23: =SUM(ScoresOnsGenoegen[[#This Row],[21]:[25]]) -> 30 | Q23: 1 | S23: =CONCATENATE($B$1," 4") -> Ons Genoegen 4 | U23: =SUM(D22:D27) -> 318
A24: 21 | B24: Aron Smolenaars | C24: 4 | J24: =SUM(ScoresOnsGenoegen[[#This Row],[1]:[5]]) -> 0 | P24: =SUM(ScoresOnsGenoegen[[#This Row],[21]:[25]]) -> 0 | Q24: 1 | S24: =CONCATENATE($B$1," 5") -> Ons Genoegen 5 | U24: =SUM(D28:D33) -> 0
A25: 22 | B25: Danielle Heijnen | C25: 2 | J25: =SUM(ScoresOnsGenoegen[[#This Row],[1]:[5]]) -> 0 | P25: =SUM(ScoresOnsGenoegen[[#This Row],[21]:[25]]) -> 0 | Q25: 1
A26: 23 | B26: Mark Vossen | C26: 5 | J26: =SUM(ScoresOnsGenoegen[[#This Row],[1]:[5]]) -> 0 | P26: =SUM(ScoresOnsGenoegen[[#This Row],[21]:[25]]) -> 0 | Q26: 1
A27: 24 | J27: =SUM(ScoresOnsGenoegen[[#This Row],[1]:[5]]) -> 0 | P27: =SUM(ScoresOnsGenoegen[[#This Row],[21]:[25]]) -> 0 | Q27: 1
A28: 25 | J28: =SUM(ScoresOnsGenoegen[[#This Row],[1]:[5]]) -> 0 | P28: =SUM(ScoresOnsGenoegen[[#This Row],[21]:[25]]) -> 0 | Q28: 1
A29: 26 | J29: =SUM(ScoresOnsGenoegen[[#This Row],[1]:[5]]) -> 0 | P29: =SUM(ScoresOnsGenoegen[[#This Row],[21]:[25]]) -> 0 | Q29: 1
A30: 27 | J30: =SUM(ScoresOnsGenoegen[[#This Row],[1]:[5]]) -> 0 | P30: =SUM(ScoresOnsGenoegen[[#This Row],[21]:[25]]) -> 0 | Q30: 1
A31: 28 | J31: =SUM(ScoresOnsGenoegen[[#This Row],[1]:[5]]) -> 0 | P31: =SUM(ScoresOnsGenoegen[[#This Row],[21]:[25]]) -> 0 | Q31: 1
A32: 29 | J32: =SUM(ScoresOnsGenoegen[[#This Row],[1]:[5]]) -> 0 | P32: =SUM(ScoresOnsGenoegen[[#This Row],[21]:[25]]) -> 0 | Q32: 1
A33: 30 | J33: =SUM(ScoresOnsGenoegen[[#This Row],[1]:[5]]) -> 0 | P33: =SUM(ScoresOnsGenoegen[[#This Row],[21]:[25]]) -> 0 | Q33: 1
A100: Actueel jaar | C100: ='# Onderlinge'!M1 -> 2016 | E100: Van | G100: t/m
A101: Jeugd Klasse A | C101: 16 t/m 18 jr | E101: =C100-18 -> 1998 | G101: =C100-16 -> 2000
A102: Jeugd Klasse B | C102: 13 t/m 15 jr | E102: =C100-15 -> 2001 | G102: =C100-13 -> 2003
A103: Jeugd Klasse C | C103: t/m 12 jr | E103: =C100-12 -> 2004 | G103: =C100 -> 2016

Sheet Buitenlust
B1: Buitenlust
E2: Hoogste serie | K2: Laatste pijlen*
A3: Positie | B3: Naam | C3: Klasse | D3: Punten | E3: 1 | F3: 2 | G3: 3 | H3: 4 | I3: 5 | J3: Totaal | K3: 21 | L3: 22 | M3: 23 | N3: 24 | O3: 25 | P3: Totaal2 | Q3: Club | S3: Klasse
A4: 1 | B4: Jac Gielen | C4: 1 | D4: 222 | E4: 8 | F4: 9 | G4: 9 | H4: 10 | I4: 10 | J4: =SUM(ScoresBuitenlust[[#This Row],[1]:[5]]) -> 46 | K4: 10 | L4: 6 | M4: 9 | N4: 9 | O4: 10 | P4: =SUM(ScoresBuitenlust[[#This Row],[21]:[25]]) -> 44 | Q4: 2 | S4: 1 | T4: Heren
A5: 2 | B5: Har Luijten | C5: 3 | D5: 218 | E5: 10 | F5: 9 | G5: 9 | H5: 9 | I5: 10 | J5: =SUM(ScoresBuitenlust[[#This Row],[1]:[5]]) -> 47 | K5: 10 | L5: 9 | M5: 9 | N5: 9 | O5: 10 | P5: =SUM(ScoresBuitenlust[[#This Row],[21]:[25]]) -> 47 | Q5: 2 | S5: 2 | T5: Dames
A6: 3 | B6: Gerard v/d Beuken | C6: 1 | D6: 215 | E6: 10 | F6: 8 | G6: 9 | H6: 9 | I6: 10 | J6: =SUM(ScoresBuitenlust[[#This Row],[1]:[5]]) -> 46 | K6: 9 | L6: 10 | M6: 8 | N6: 7 | O6: 9 | P6: =SUM(ScoresBuitenlust[[#This Row],[21]:[25]]) -> 43 | Q6: 2 | S6: 3 | T6: Veteraan | V6: Van | W6: t/m
A7: 4 | B7: Jo Caalders | C7: 3 | D7: 189 | E7: 9 | F7: 10 | G7: 6 | H7: 10 | I7: 8 | J7: =SUM(ScoresBuitenlust[[#This Row],[1]:[5]]) -> 43 | K7: 5 | L7: 6 | M7: 10 | N7: 9 | O7: 9 | P7: =SUM(ScoresBuitenlust[[#This Row],[21]:[25]]) -> 39 | Q7: 2 | S7: 4 | T7: Jeugd t/m 18 | U7: Groep A | V7: =E101 -> 1998 | W7: =G101 -> 2000
A8: 5 | B8: Martin Damen | C8: 1 | D8: 178 | E8: 8 | F8: 9 | G8: 8 | H8: 8 | I8: 8 | J8: =SUM(ScoresBuitenlust[[#This Row],[1]:[5]]) -> 41 | K8: 8 | L8: 8 | M8: 7 | N8: 3 | O8: 10 | P8: =SUM(ScoresBuitenlust[[#This Row],[21]:[25]]) -> 36 | Q8: 2 | S8: 5 | T8: Jeugd t/m 15 | U8: Groep B | V8: =E102 -> 2001 | W8: =G102 -> 2003
A9: 6 | B9: Mike Dekker | C9: 1 | D9: 154 | E9: 9 | F9: 8 | G9: 7 | H9: 8 | I9: 8 | J9: =SUM(ScoresBuitenlust[[#This Row],[1]:[5]]) -> 40 | K9: 8 | L9: 8 | M9: 6 | N9: 7 | O9: 5 | P9: =SUM(ScoresBuitenlust[[#This Row],[21]:[25]]) -> 34 | Q9: 2
A10: 7 | B10: Paulien v/d Beuken | C10: 2 | D10: 98 | E10: 4 | F10: 6 | G10: 7 | H10: 7 | I10: 4 | J10: =SUM(ScoresBuitenlust[[#This Row],[1]:[5]]) -> 28 | K10: 4 | L10: 9 | M10: 2 | N10: 6 | O10: 1 | P10: =SUM(ScoresBuitenlust[[#This Row],[21]:[25]]) -> 22 | Q10: 2
A11: 8 | B11: Wim Peeters | C11: 1 | D11: 93 | E11: 1 | F11: 5 | G11: 6 | H11: 5 | I11: 6 | J11: =SUM(ScoresBuitenlust[[#This Row],[1]:[5]]) -> 23 | K11: 1 | L11: 5 | M11: 6 | N11: 5 | O11: 6 | P11: =SUM(ScoresBuitenlust[[#This Row],[21]:[25]]) -> 23 | Q11: 2 | S11: Laatste pijlen
A12: 9 | B12: Wil Luijten | C12: 1 | J12: =SUM(ScoresBuitenlust[[#This Row],[1]:[5]]) -> 0 | P12: =SUM(ScoresBuitenlust[[#This Row],[21]:[25]]) -> 0 | Q12: 2 | S12: Optioneel veld om automatisch sorteren mogelijk te maken
A13: 10 | J13: =SUM(ScoresBuitenlust[[#This Row],[1]:[5]]) -> 0 | P13: =SUM(ScoresBuitenlust[[#This Row],[21]:[25]]) -> 0 | Q13: 2 | S13: Invullen zover nodig
A14: 11 | J14: =SUM(ScoresBuitenlust[[#This Row],[1]:[5]]) -> 0 | P14: =SUM(ScoresBuitenlust[[#This Row],[21]:[25]]) -> 0 | Q14: 2
A15: 12 | J15: =SUM(ScoresBuitenlust[[#This Row],[1]:[5]]) -> 0 | P15: =SUM(ScoresBuitenlust[[#This Row],[21]:[25]]) -> 0 | Q15: 2 | S15: Uitslag maken
A16: 13 | J16: =SUM(ScoresBuitenlust[[#This Row],[1]:[5]]) -> 0 | P16: =SUM(ScoresBuitenlust[[#This Row],[21]:[25]]) -> 0 | Q16: 2 | S16: Gebruik de knop 'Maak Uitslag' in het uitslagen tabblad om alle
A17: 14 | J17: =SUM(ScoresBuitenlust[[#This Row],[1]:[5]]) -> 0 | P17: =SUM(ScoresBuitenlust[[#This Row],[21]:[25]]) -> 0 | Q17: 2 | S17: tabbladen (incl. deze dus) te sorteren en een uitslag te maken
A18: 15 | J18: =SUM(ScoresBuitenlust[[#This Row],[1]:[5]]) -> 0 | P18: =SUM(ScoresBuitenlust[[#This Row],[21]:[25]]) -> 0 | Q18: 2
A19: 16 | J19: =SUM(ScoresBuitenlust[[#This Row],[1]:[5]]) -> 0 | P19: =SUM(ScoresBuitenlust[[#This Row],[21]:[25]]) -> 0 | Q19: 2 | S19: Team | U19: Punten
A20: 17 | J20: =SUM(ScoresBuitenlust[[#This Row],[1]:[5]]) -> 0 | P20: =SUM(ScoresBuitenlust[[#This Row],[21]:[25]]) -> 0 | Q20: 2 | S20: =CONCATENATE($B$1," 1") -> Buitenlust 1 | U20: =SUM(D4:D9) -> 1176
A21: 18 | J21: =SUM(ScoresBuitenlust[[#This Row],[1]:[5]]) -> 0 | P21: =SUM(ScoresBuitenlust[[#This Row],[21]:[25]]) -> 0 | Q21: 2 | S21: =CONCATENATE($B$1," 2") -> Buitenlust 2 | U21: =SUM(D10:D15) -> 191
A22: 19 | J22: =SUM(ScoresBuitenlust[[#This Row],[1]:[5]]) -> 0 | P22: =SUM(ScoresBuitenlust[[#This Row],[21]:[25]]) -> 0 | Q22: 2 | S22: =CONCATENATE($B$1," 3") -> Buitenlust 3 | U22: =SUM(D16:D21) -> 0
A23: 20 | J23: =SUM(ScoresBuitenlust[[#This Row],[1]:[5]]) -> 0 | P23: =SUM(ScoresBuitenlust[[#This Row],[21]:[25]]) -> 0 | Q23: 2 | S23: =CONCATENATE($B$1," 4") -> Buitenlust 4 | U23: =SUM(D22:D27) -> 0
A24: 21 | J24: =SUM(ScoresBuitenlust[[#This Row],[1]:[5]]) -> 0 | P24: =SUM(ScoresBuitenlust[[#This Row],[21]:[25]]) -> 0 | Q24: 2 | S24: =CONCATENATE($B$1," 5") -> Buitenlust 5 | U24: =SUM(D28:D33) -> 0
A25: 22 | J25: =SUM(ScoresBuitenlust[[#This Row],[1]:[5]]) -> 0 | P25: =SUM(ScoresBuitenlust[[#This Row],[21]:[25]]) -> 0 | Q25: 2
A26: 23 | J26: =SUM(ScoresBuitenlust[[#This Row],[1]:[5]]) -> 0 | P26: =SUM(ScoresBuitenlust[[#This Row],[21]:[25]]) -> 0 | Q26: 2
A27: 24 | J27: =SUM(ScoresBuitenlust[[#This Row],[1]:[5]]) -> 0 | P27: =SUM(ScoresBuitenlust[[#This Row],[21]:[25]]) -> 0 | Q27: 2
A28: 25 | J28: =SUM(ScoresBuitenlust[[#This Row],[1]:[5]]) -> 0 | P28: =SUM(ScoresBuitenlust[[#This Row],[21]:[25]]) -> 0 | Q28: 2
A29: 26 | J29: =SUM(ScoresBuitenlust[[#This Row],[1]:[5]]) -> 0 | P29: =SUM(ScoresBuitenlust[[#This Row],[21]:[25]]) -> 0 | Q29: 2
A30: 27 | J30: =SUM(ScoresBuitenlust[[#This Row],[1]:[5]]) -> 0 | P30: =SUM(ScoresBuitenlust[[#This Row],[21]:[25]]) -> 0 | Q30: 2
A31: 28 | J31: =SUM(ScoresBuitenlust[[#This Row],[1]:[5]]) -> 0 | P31: =SUM(ScoresBuitenlust[[#This Row],[21]:[25]]) -> 0 | Q31: 2
A32: 29 | J32: =SUM(ScoresBuitenlust[[#This Row],[1]:[5]]) -> 0 | P32: =SUM(ScoresBuitenlust[[#This Row],[21]:[25]]) -> 0 | Q32: 2
A33: 30 | J33: =SUM(ScoresBuitenlust[[#This Row],[1]:[5]]) -> 0 | P33: =SUM(ScoresBuitenlust[[#This Row],[21]:[25]]) -> 0 | Q33: 2
A100: Actueel jaar | C100: ='# Onderlinge'!M1 -> 2016 | E100: Van | G100: t/m
A101: Jeugd Klasse A | C101: 16 t/m 18 jr | E101: =C100-18 -> 1998 | G101: =C100-16 -> 2000
A102: Jeugd Klasse B | C102: 13 t/m 15 jr | E102: =C100-15 -> 2001 | G102: =C100-13 -> 2003
A103: Jeugd Klasse C | C103: t/m 12 jr | E103: =C100-12 -> 2004 | G103: =C100 -> 2016

Sheet Roos in Bloei
B1: Roos in Bloei
E2: Hoogste serie | K2: Laatste pijlen*
A3: Positie | B3: Naam | C3: Klasse | D3: Punten | E3: 1 | F3: 2 | G3: 3 | H3: 4 | I3: 5 | J3: Totaal | K3: 21 | L3: 22 | M3: 23 | N3: 24 | O3: 25 | P3: Totaal2 | Q3: Club | S3: Klasse
A4: 1 | B4: Jeroen Verschuren | C4: 1 | D4: 222 | E4: 10 | F4: 10 | G4: 10 | H4: 9 | I4: 8 | J4: =SUM(ScoresRoosInBloei[[#This Row],[1]:[5]]) -> 47 | K4: 10 | L4: 10 | M4: 10 | N4: 9 | O4: 8 | P4: =SUM(ScoresRoosInBloei[[#This Row],[21]:[25]]) -> 47 | Q4: 3 | S4: 1 | T4: Heren
A5: 2 | B5: Jan Sijbers | C5: 1 | D5: 218 | E5: 8 | F5: 8 | G5: 9 | H5: 10 | I5: 10 | J5: =SUM(ScoresRoosInBloei[[#This Row],[1]:[5]]) -> 45 | K5: 10 | L5: 10 | M5: 6 | N5: 9 | O5: 10 | P5: =SUM(ScoresRoosInBloei[[#This Row],[21]:[25]]) -> 45 | Q5: 3 | S5: 2 | T5: Dames
A6: 3 | B6: Etienne Deckers | C6: 1 | D6: 217 | E6: 8 | F6: 9 | G6: 10 | H6: 10 | I6: 10 | J6: =SUM(ScoresRoosInBloei[[#This Row],[1]:[5]]) -> 47 | K6: 9 | L6: 9 | M6: 9 | N6: 8 | O6: 8 | P6: =SUM(ScoresRoosInBloei[[#This Row],[21]:[25]]) -> 43 | Q6: 3 | S6: 3 | T6: Veteraan | V6: Van | W6: t/m
A7: 4 | B7: Peter Mennen | C7: 1 | D7: 211 | E7: 9 | F7: 8 | G7: 9 | H7: 9 | I7: 9 | J7: =SUM(ScoresRoosInBloei[[#This Row],[1]:[5]]) -> 44 | K7: 10 | L7: 7 | M7: 10 | N7: 8 | O7: 7 | P7: =SUM(ScoresRoosInBloei[[#This Row],[21]:[25]]) -> 42 | Q7: 3 | S7: 4 | T7: Jeugd t/m 18 | U7: Groep A | V7: =E101 -> 1998 | W7: =G101 -> 2000
A8: 5 | B8: Thieu Jeurninck | C8: 3 | D8: 204 | E8: 10 | F8: 8 | G8: 9 | H8: 7 | I8: 8 | J8: =SUM(ScoresRoosInBloei[[#This Row],[1]:[5]]) -> 42 | K8: 7 | L8: 8 | M8: 9 | N8: 8 | O8: 9 | P8: =SUM(ScoresRoosInBloei[[#This Row],[21]:[25]]) -> 41 | Q8: 3 | S8: 5 | T8: Jeugd t/m 15 | U8: Groep B | V8: =E102 -> 2001 | W8: =G102 -> 2003
A9: 6 | B9: Quin Hendriks | C9: 5 | D9: 202 | E9: 8 | F9: 10 | G9: 8 | H9: 10 | I9: 8 | J9: =SUM(ScoresRoosInBloei[[#This Row],[1]:[5]]) -> 44 | K9: 8 | L9: 9 | M9: 9 | O9: 10 | P9: =SUM(ScoresRoosInBloei[[#This Row],[21]:[25]]) -> 36 | Q9: 3
A10: 7 | B10: Jeroen van Nispen | C10: 5 | D10: 195 | E10: 8 | F10: 9 | G10: 8 | H10: 10 | I10: 9 | J10: =SUM(ScoresRoosInBloei[[#This Row],[1]:[5]]) -> 44 | K10: 8 | L10: 8 | M10: 7 | N10: 9 | O10: 10 | P10: =SUM(ScoresRoosInBloei[[#This Row],[21]:[25]]) -> 42 | Q10: 3
A11: 8 | B11: Pascal Hendriks | C11: 1 | D11: 194 | E11: 9 | F11: 8 | G11: 10 | H11: 10 | I11: 10 | J11: =SUM(ScoresRoosInBloei[[#This Row],[1]:[5]]) -> 47 | K11: 8 | M11: 9 | N11: 9 | O11: 8 | P11: =SUM(ScoresRoosInBloei[[#This Row],[21]:[25]]) -> 34 | Q11: 3 | S11: Laatste pijlen
A12: 9 | B12: Sjeng Boonen | C12: 1 | D12: 193 | E12: 8 | F12: 7 | G12: 8 | H12: 9 | I12: 9 | J12: =SUM(ScoresRoosInBloei[[#This Row],[1]:[5]]) -> 41 | K12: 8 | L12: 7 | M12: 8 | N12: 9 | O12: 9 | P12: =SUM(ScoresRoosInBloei[[#This Row],[21]:[25]]) -> 41 | Q12: 3 | S12: Optioneel veld om automatisch sorteren mogelijk te maken
A13: 10 | B13: Douwe Grenzenberg | C13: 1 | D13: 192 | E13: 9 | F13: 7 | G13: 9 | H13: 9 | I13: 8 | J13: =SUM(ScoresRoosInBloei[[#This Row],[1]:[5]]) -> 42 | K13: 8 | L13: 6 | M13: 8 | N13: 8 | O13: 5 | P13: =SUM(ScoresRoosInBloei[[#This Row],[21]:[25]]) -> 35 | Q13: 3 | S13: Invullen zover nodig
A14: 11 | B14: Wesley Hendriks | C14: 1 | D14: 190 | E14: 10 | F14: 8 | G14: 8 | H14: 9 | I14: 7 | J14: =SUM(ScoresRoosInBloei[[#This Row],[1]:[5]]) -> 42 | K14: 9 | L14: 7 | M14: 9 | N14: 10 | O14: 6 | P14: =SUM(ScoresRoosInBloei[[#This Row],[21]:[25]]) -> 41 | Q14: 3
A15: 12 | B15: Wim Hendriks | C15: 1 | D15: 178 | E15: 7 | F15: 8 | G15: 8 | H15: 10 | I15: 9 | J15: =SUM(ScoresRoosInBloei[[#This Row],[1]:[5]]) -> 42 | K15: 2 | L15: 7 | M15: 8 | N15: 7 | O15: 6 | P15: =SUM(ScoresRoosInBloei[[#This Row],[21]:[25]]) -> 30 | Q15: 3 | S15: Uitslag maken
A16: 13 | B16: Piet Gommans | C16: 3 | D16: 174 | E16: 10 | F16: 6 | G16: 8 | H16: 8 | I16: 6 | J16: =SUM(ScoresRoosInBloei[[#This Row],[1]:[5]]) -> 38 | K16: 9 | L16: 8 | M16: 5 | N16: 6 | O16: 8 | P16: =SUM(ScoresRoosInBloei[[#This Row],[21]:[25]]) -> 36 | Q16: 3 | S16: Gebruik de knop 'Maak Uitslag' in het uitslagen tabblad om alle
A17: 14 | B17: Martijn Janssen | C17: 1 | J17: =SUM(ScoresRoosInBloei[[#This Row],[1]:[5]]) -> 0 | P17: =SUM(ScoresRoosInBloei[[#This Row],[21]:[25]]) -> 0 | Q17: 3 | S17: tabbladen (incl. deze dus) te sorteren en een uitslag te maken
A18: 15 | B18: Sjaak Clephas | C18: 3 | J18: =SUM(ScoresRoosInBloei[[#This Row],[1]:[5]]) -> 0 | P18: =SUM(ScoresRoosInBloei[[#This Row],[21]:[25]]) -> 0 | Q18: 3
A19: 16 | B19: Rob van Nispen | C19: 4 | J19: =SUM(ScoresRoosInBloei[[#This Row],[1]:[5]]) -> 0 | P19: =SUM(ScoresRoosInBloei[[#This Row],[21]:[25]]) -> 0 | Q19: 3 | S19: Team | U19: Punten
A20: 17 | J20: =SUM(ScoresRoosInBloei[[#This Row],[1]:[5]]) -> 0 | P20: =SUM(ScoresRoosInBloei[[#This Row],[21]:[25]]) -> 0 | Q20: 3 | S20: =CONCATENATE($B$1," 1") -> Roos in Bloei 1 | U20: =SUM(D4:D9) -> 1274
A21: 18 | J21: =SUM(ScoresRoosInBloei[[#This Row],[1]:[5]]) -> 0 | P21: =SUM(ScoresRoosInBloei[[#This Row],[21]:[25]]) -> 0 | Q21: 3 | S21: =CONCATENATE($B$1," 2") -> Roos in Bloei 2 | U21: =SUM(D10:D15) -> 1142
A22: 19 | J22: =SUM(ScoresRoosInBloei[[#This Row],[1]:[5]]) -> 0 | P22: =SUM(ScoresRoosInBloei[[#This Row],[21]:[25]]) -> 0 | Q22: 3 | S22: =CONCATENATE($B$1," 3") -> Roos in Bloei 3 | U22: =SUM(D16:D21) -> 174
A23: 20 | J23: =SUM(ScoresRoosInBloei[[#This Row],[1]:[5]]) -> 0 | P23: =SUM(ScoresRoosInBloei[[#This Row],[21]:[25]]) -> 0 | Q23: 3 | S23: =CONCATENATE($B$1," 4") -> Roos in Bloei 4 | U23: =SUM(D22:D27) -> 0
A24: 21 | J24: =SUM(ScoresRoosInBloei[[#This Row],[1]:[5]]) -> 0 | P24: =SUM(ScoresRoosInBloei[[#This Row],[21]:[25]]) -> 0 | Q24: 3 | S24: =CONCATENATE($B$1," 5") -> Roos in Bloei 5 | U24: =SUM(D28:D33) -> 0
A25: 22 | J25: =SUM(ScoresRoosInBloei[[#This Row],[1]:[5]]) -> 0 | P25: =SUM(ScoresRoosInBloei[[#This Row],[21]:[25]]) -> 0 | Q25: 3
A26: 23 | J26: =SUM(ScoresRoosInBloei[[#This Row],[1]:[5]]) -> 0 | P26: =SUM(ScoresRoosInBloei[[#This Row],[21]:[25]]) -> 0 | Q26: 3
A27: 24 | J27: =SUM(ScoresRoosInBloei[[#This Row],[1]:[5]]) -> 0 | P27: =SUM(ScoresRoosInBloei[[#This Row],[21]:[25]]) -> 0 | Q27: 3
A28: 25 | J28: =SUM(ScoresRoosInBloei[[#This Row],[1]:[5]]) -> 0 | P28: =SUM(ScoresRoosInBloei[[#This Row],[21]:[25]]) -> 0 | Q28: 3
A29: 26 | J29: =SUM(ScoresRoosInBloei[[#This Row],[1]:[5]]) -> 0 | P29: =SUM(ScoresRoosInBloei[[#This Row],[21]:[25]]) -> 0 | Q29: 3
A30: 27 | J30: =SUM(ScoresRoosInBloei[[#This Row],[1]:[5]]) -> 0 | P30: =SUM(ScoresRoosInBloei[[#This Row],[21]:[25]]) -> 0 | Q30: 3
A31: 28 | J31: =SUM(ScoresRoosInBloei[[#This Row],[1]:[5]]) -> 0 | P31: =SUM(ScoresRoosInBloei[[#This Row],[21]:[25]]) -> 0 | Q31: 3
A32: 29 | J32: =SUM(ScoresRoosInBloei[[#This Row],[1]:[5]]) -> 0 | P32: =SUM(ScoresRoosInBloei[[#This Row],[21]:[25]]) -> 0 | Q32: 3
A33: 30 | J33: =SUM(ScoresRoosInBloei[[#This Row],[1]:[5]]) -> 0 | P33: =SUM(ScoresRoosInBloei[[#This Row],[21]:[25]]) -> 0 | Q33: 3
A100: Actueel jaar | C100: ='# Onderlinge'!M1 -> 2016 | E100: Van | G100: t/m
A101: Jeugd Klasse A | C101: 16 t/m 18 jr | E101: =C100-18 -> 1998 | G101: =C100-16 -> 2000
A102: Jeugd Klasse B | C102: 13 t/m 15 jr | E102: =C100-15 -> 2001 | G102: =C100-13 -> 2003
A103: Jeugd Klasse C | C103: t/m 12 jr | E103: =C100-12 -> 2004 | G103: =C100 -> 2016

Sheet Heidebloem
B1: Heidebloem
E2: Hoogste serie | K2: Laatste pijlen*
A3: Positie | B3: Naam | C3: Klasse | D3: Punten | E3: 1 | F3: 2 | G3: 3 | H3: 4 | I3: 5 | J3: Totaal | K3: 21 | L3: 22 | M3: 23 | N3: 24 | O3: 25 | P3: Totaal2 | Q3: Club | S3: Klasse
A4: 1 | B4: Sabine van Rijt | C4: 2 | D4: 227 | E4: 9 | F4: 10 | G4: 10 | H4: 10 | I4: 9 | J4: =SUM(ScoresHeidebloem[[#This Row],[1]:[5]]) -> 48 | K4: 9 | L4: 10 | M4: 10 | N4: 10 | O4: 9 | P4: =SUM(ScoresHeidebloem[[#This Row],[21]:[25]]) -> 48 | Q4: 4 | S4: 1 | T4: Heren
A5: 2 | B5: Lowie Joosten | C5: 3 | D5: 218 | E5: 10 | F5: 8 | G5: 8 | H5: 9 | I5: 10 | J5: =SUM(ScoresHeidebloem[[#This Row],[1]:[5]]) -> 45 | K5: 10 | L5: 8 | M5: 8 | N5: 10 | O5: 8 | P5: =SUM(ScoresHeidebloem[[#This Row],[21]:[25]]) -> 44 | Q5: 4 | S5: 2 | T5: Dames
A6: 3 | B6: Piet van Roy | C6: 3 | D6: 213 | E6: 7 | F6: 10 | G6: 10 | H6: 9 | I6: 8 | J6: =SUM(ScoresHeidebloem[[#This Row],[1]:[5]]) -> 44 | K6: 9 | L6: 10 | M6: 6 | N6: 10 | O6: 7 | P6: =SUM(ScoresHeidebloem[[#This Row],[21]:[25]]) -> 42 | Q6: 4 | S6: 3 | T6: Veteraan | V6: Van | W6: t/m
A7: 4 | B7: Peter Joosten | C7: 3 | D7: 210 | E7: 9 | F7: 9 | G7: 10 | H7: 7 | I7: 10 | J7: =SUM(ScoresHeidebloem[[#This Row],[1]:[5]]) -> 45 | K7: 9 | L7: 9 | M7: 10 | N7: 7 | O7: 10 | P7: =SUM(ScoresHeidebloem[[#This Row],[21]:[25]]) -> 45 | Q7: 4 | S7: 4 | T7: Jeugd t/m 18 | U7: Groep A | V7: =E101 -> 1998 | W7: =G101 -> 2000
A8: 5 | B8: Wiel Boonen | C8: 3 | D8: 210 | E8: 10 | F8: 9 | G8: 8 | H8: 9 | I8: 10 | J8: =SUM(ScoresHeidebloem[[#This Row],[1]:[5]]) -> 46 | K8: 10 | L8: 7 | M8: 6 | N8: 7 | O8: 9 | P8: =SUM(ScoresHeidebloem[[#This Row],[21]:[25]]) -> 39 | Q8: 4 | S8: 5 | T8: Jeugd t/m 15 | U8: Groep B | V8: =E102 -> 2001 | W8: =G102 -> 2003
A9: 6 | B9: Wim Verstappen | C9: 1 | D9: 210 | E9: 10 | F9: 9 | G9: 9 | H9: 9 | I9: 9 | J9: =SUM(ScoresHeidebloem[[#This Row],[1]:[5]]) -> 46 | K9: 9 | L9: 8 | M9: 9 | N9: 9 | O9: 6 | P9: =SUM(ScoresHeidebloem[[#This Row],[21]:[25]]) -> 41 | Q9: 4
A10: 7 | B10: Johan van Rijt | C10: 1 | D10: 208 | E10: 10 | F10: 10 | G10: 8 | H10: 9 | I10: 9 | J10: =SUM(ScoresHeidebloem[[#This Row],[1]:[5]]) -> 46 | K10: 8 | L10: 7 | M10: 9 | N10: 9 | O10: 9 | P10: =SUM(ScoresHeidebloem[[#This Row],[21]:[25]]) -> 42 | Q10: 4
A11: 8 | B11: Nard Roost | C11: 1 | D11: 205 | E11: 10 | F11: 9 | G11: 7 | H11: 10 | I11: 9 | J11: =SUM(ScoresHeidebloem[[#This Row],[1]:[5]]) -> 45 | K11: 8 | L11: 7 | M11: 7 | N11: 8 | O11: 9 | P11: =SUM(ScoresHeidebloem[[#This Row],[21]:[25]]) -> 39 | Q11: 4 | S11: Laatste pijlen
A12: 9 | B12: Ad Goossens | C12: 3 | D12: 204 | E12: 9 | F12: 9 | G12: 10 | H12: 10 | I12: 10 | J12: =SUM(ScoresHeidebloem[[#This Row],[1]:[5]]) -> 48 | K12: 9 | L12: 9 | M12: 10 | N12: 10 | O12: 10 | P12: =SUM(ScoresHeidebloem[[#This Row],[21]:[25]]) -> 48 | Q12: 4 | S12: Optioneel veld om automatisch sorteren mogelijk te maken
A13: 10 | B13: Rymon van Horne | C13: 1 | D13: 201 | E13: 9 | F13: 10 | G13: 8 | H13: 10 | I13: 6 | J13: =SUM(ScoresHeidebloem[[#This Row],[1]:[5]]) -> 43 | K13: 9 | L13: 10 | M13: 8 | N13: 10 | O13: 6 | P13: =SUM(ScoresHeidebloem[[#This Row],[21]:[25]]) -> 43 | Q13: 4 | S13: Invullen zover nodig
A14: 11 | B14: Lowie Claessen | C14: 3 | D14: 199 | E14: 7 | F14: 8 | G14: 8 | H14: 9 | I14: 10 | J14: =SUM(ScoresHeidebloem[[#This Row],[1]:[5]]) -> 42 | K14: 9 | L14: 8 | M14: 7 | N14: 8 | O14: 8 | P14: =SUM(ScoresHeidebloem[[#This Row],[21]:[25]]) -> 40 | Q14: 4
A15: 12 | B15: Jo van Rijt | C15: 3 | D15: 184 | E15: 9 | F15: 9 | G15: 10 | H15: 9 | I15: 10 | J15: =SUM(ScoresHeidebloem[[#This Row],[1]:[5]]) -> 47 | K15: 9 | L15: 9 | M15: 10 | N15: 9 | O15: 10 | P15: =SUM(ScoresHeidebloem[[#This Row],[21]:[25]]) -> 47 | Q15: 4 | S15: Uitslag maken
A16: 13 | B16: Frits Levels | C16: 3 | D16: 175 | E16: 8 | F16: 5 | G16: 9 | H16: 8 | I16: 10 | J16: =SUM(ScoresHeidebloem[[#This Row],[1]:[5]]) -> 40 | K16: 7 | L16: 8 | M16: 9 | N16: 7 | O16: 6 | P16: =SUM(ScoresHeidebloem[[#This Row],[21]:[25]]) -> 37 | Q16: 4 | S16: Gebruik de knop 'Maak Uitslag' in het uitslagen tabblad om alle
A17: 14 | B17: Elliy Glim | C17: 3 | D17: 172 | E17: 10 | F17: 8 | G17: 6 | H17: 9 | I17: 6 | J17: =SUM(ScoresHeidebloem[[#This Row],[1]:[5]]) -> 39 | K17: 5 | L17: 7 | M17: 9 | N17: 7 | O17: 8 | P17: =SUM(ScoresHeidebloem[[#This Row],[21]:[25]]) -> 36 | Q17: 4 | S17: tabbladen (incl. deze dus) te sorteren en een uitslag te maken
A18: 15 | B18: Rien van Hugten | C18: 1 | D18: 170 | E18: 10 | F18: 7 | G18: 6 | H18: 8 | I18: 9 | J18: =SUM(ScoresHeidebloem[[#This Row],[1]:[5]]) -> 40 | K18: 5 | L18: 8 | M18: 6 | N18: 6 | O18: 5 | P18: =SUM(ScoresHeidebloem[[#This Row],[21]:[25]]) -> 30 | Q18: 4
A19: 16 | B19: Nard Peeters | C19: 1 | D19: 169 | E19: 8 | F19: 7 | G19: 6 | H19: 7 | I19: 9 | J19: =SUM(ScoresHeidebloem[[#This Row],[1]:[5]]) -> 37 | K19: 7 | L19: 5 | M19: 8 | N19: 4 | O19: 8 | P19: =SUM(ScoresHeidebloem[[#This Row],[21]:[25]]) -> 32 | Q19: 4 | S19: Team | U19: Punten
A20: 17 | B20: Peter van Ratingen | C20: 1 | D20: 162 | E20: 7 | F20: 9 | H20: 9 | I20: 8 | J20: =SUM(ScoresHeidebloem[[#This Row],[1]:[5]]) -> 33 | K20: 9 | L20: 9 | N20: 8 | O20: 5 | P20: =SUM(ScoresHeidebloem[[#This Row],[21]:[25]]) -> 31 | Q20: 4 | S20: =CONCATENATE($B$1," 1") -> Heidebloem 1 | U20: =SUM(D4:D9) -> 1288
A21: 18 | B21: Desiréé Lommen | C21: 2 | J21: =SUM(ScoresHeidebloem[[#This Row],[1]:[5]]) -> 0 | P21: =SUM(ScoresHeidebloem[[#This Row],[21]:[25]]) -> 0 | Q21: 4 | S21: =CONCATENATE($B$1," 2") -> Heidebloem 2 | U21: =SUM(D10:D15) -> 1201
A22: 19 | B22: Ger Levels | C22: 1 | J22: =SUM(ScoresHeidebloem[[#This Row],[1]:[5]]) -> 0 | P22: =SUM(ScoresHeidebloem[[#This Row],[21]:[25]]) -> 0 | Q22: 4 | S22: =CONCATENATE($B$1," 3") -> Heidebloem 3 | U22: =SUM(D16:D21) -> 848
A23: 20 | B23: Theij Verdonschot | C23: 3 | J23: =SUM(ScoresHeidebloem[[#This Row],[1]:[5]]) -> 0 | P23: =SUM(ScoresHeidebloem[[#This Row],[21]:[25]]) -> 0 | Q23: 4 | S23: =CONCATENATE($B$1," 4") -> Heidebloem 4 | U23: =SUM(D22:D27) -> 0
A24: 21 | J24: =SUM(ScoresHeidebloem[[#This Row],[1]:[5]]) -> 0 | P24: =SUM(ScoresHeidebloem[[#This Row],[21]:[25]]) -> 0 | Q24: 4 | S24: =CONCATENATE($B$1," 5") -> Heidebloem 5 | U24: =SUM(D28:D33) -> 0
A25: 22 | J25: =SUM(ScoresHeidebloem[[#This Row],[1]:[5]]) -> 0 | P25: =SUM(ScoresHeidebloem[[#This Row],[21]:[25]]) -> 0 | Q25: 4
A26: 23 | J26: =SUM(ScoresHeidebloem[[#This Row],[1]:[5]]) -> 0 | P26: =SUM(ScoresHeidebloem[[#This Row],[21]:[25]]) -> 0 | Q26: 4
A27: 24 | J27: =SUM(ScoresHeidebloem[[#This Row],[1]:[5]]) -> 0 | P27: =SUM(ScoresHeidebloem[[#This Row],[21]:[25]]) -> 0 | Q27: 4
A28: 25 | J28: =SUM(ScoresHeidebloem[[#This Row],[1]:[5]]) -> 0 | P28: =SUM(ScoresHeidebloem[[#This Row],[21]:[25]]) -> 0 | Q28: 4
A29: 26 | J29: =SUM(ScoresHeidebloem[[#This Row],[1]:[5]]) -> 0 | P29: =SUM(ScoresHeidebloem[[#This Row],[21]:[25]]) -> 0 | Q29: 4
A30: 27 | J30: =SUM(ScoresHeidebloem[[#This Row],[1]:[5]]) -> 0 | P30: =SUM(ScoresHeidebloem[[#This Row],[21]:[25]]) -> 0 | Q30: 4
A31: 28 | J31: =SUM(ScoresHeidebloem[[#This Row],[1]:[5]]) -> 0 | P31: =SUM(ScoresHeidebloem[[#This Row],[21]:[25]]) -> 0 | Q31: 4
A32: 29 | J32: =SUM(ScoresHeidebloem[[#This Row],[1]:[5]]) -> 0 | P32: =SUM(ScoresHeidebloem[[#This Row],[21]:[25]]) -> 0 | Q32: 4
A33: 30 | J33: =SUM(ScoresHeidebloem[[#This Row],[1]:[5]]) -> 0 | P33: =SUM(ScoresHeidebloem[[#This Row],[21]:[25]]) -> 0 | Q33: 4
A100: Actueel jaar | C100: ='# Onderlinge'!M1 -> 2016 | E100: Van | G100: t/m
A101: Jeugd Klasse A | C101: 16 t/m 18 jr | E101: =C100-18 -> 1998 | G101: =C100-16 -> 2000
A102: Jeugd Klasse B | C102: 13 t/m 15 jr | E102: =C100-15 -> 2001 | G102: =C100-13 -> 2003
A103: Jeugd Klasse C | C103: t/m 12 jr | E103: =C100-12 -> 2004 | G103: =C100 -> 2016

Sheet Heideroosje
B1: Heideroosje
E2: Hoogste serie | K2: Laatste pijlen*
A3: Positie | B3: Naam | C3: Klasse | D3: Punten | E3: 1 | F3: 2 | G3: 3 | H3: 4 | I3: 5 | J3: Totaal | K3: 21 | L3: 22 | M3: 23 | N3: 24 | O3: 25 | P3: Totaal2 | Q3: Club | S3: Klasse
A4: 1 | B4: Edwin Joosten | C4: 1 | D4: 233 | E4: 10 | F4: 10 | G4: 10 | H4: 10 | I4: 10 | J4: =SUM(ScoresHeideroosje[[#This Row],[1]:[5]]) -> 50 | K4: 10 | L4: 9 | M4: 8 | N4: 9 | O4: 9 | P4: =SUM(ScoresHeideroosje[[#This Row],[21]:[25]]) -> 45 | Q4: 5 | S4: 1 | T4: Heren
A5: 2 | B5: Ben Koper | C5: 1 | D5: 229 | E5: 9 | F5: 10 | G5: 9 | H5: 9 | I5: 10 | J5: =SUM(ScoresHeideroosje[[#This Row],[1]:[5]]) -> 47 | K5: 9 | L5: 10 | M5: 9 | N5: 9 | O5: 10 | P5: =SUM(ScoresHeideroosje[[#This Row],[21]:[25]]) -> 47 | Q5: 5 | S5: 2 | T5: Dames
A6: 3 | B6: Peter Verstappen | C6: 3 | D6: 223 | E6: 9 | F6: 9 | G6: 10 | H6: 10 | I6: 9 | J6: =SUM(ScoresHeideroosje[[#This Row],[1]:[5]]) -> 47 | K6: 9 | L6: 10 | M6: 9 | N6: 9 | O6: 8 | P6: =SUM(ScoresHeideroosje[[#This Row],[21]:[25]]) -> 45 | Q6: 5 | S6: 3 | T6: Veteraan | V6: Van | W6: t/m
A7: 4 | B7: Jo Peeters | C7: 3 | D7: 222 | E7: 9 | F7: 10 | G7: 10 | H7: 10 | I7: 9 | J7: =SUM(ScoresHeideroosje[[#This Row],[1]:[5]]) -> 48 | K7: 9 | L7: 8 | M7: 10 | N7: 10 | O7: 10 | P7: =SUM(ScoresHeideroosje[[#This Row],[21]:[25]]) -> 47 | Q7: 5 | S7: 4 | T7: Jeugd t/m 18 | U7: Groep A | V7: =E101 -> 1998 | W7: =G101 -> 2000
A8: 5 | B8: Maikel Boumans | C8: 1 | D8: 218 | E8: 9 | F8: 8 | G8: 9 | H8: 10 | I8: 10 | J8: =SUM(ScoresHeideroosje[[#This Row],[1]:[5]]) -> 46 | K8: 9 | L8: 9 | M8: 10 | N8: 9 | O8: 9 | P8: =SUM(ScoresHeideroosje[[#This Row],[21]:[25]]) -> 46 | Q8: 5 | S8: 5 | T8: Jeugd t/m 15 | U8: Groep B | V8: =E102 -> 2001 | W8: =G102 -> 2003
A9: 6 | B9: Marc Simons | C9: 1 | D9: 217 | E9: 9 | F9: 8 | G9: 9 | H9: 10 | I9: 9 | J9: =SUM(ScoresHeideroosje[[#This Row],[1]:[5]]) -> 45 | K9: 9 | L9: 8 | M9: 9 | N9: 10 | O9: 9 | P9: =SUM(ScoresHeideroosje[[#This Row],[21]:[25]]) -> 45 | Q9: 5
A10: 7 | B10: Math Crins | C10: 1 | D10: 216 | E10: 10 | F10: 10 | G10: 10 | H10: 8 | I10: 8 | J10: =SUM(ScoresHeideroosje[[#This Row],[1]:[5]]) -> 46 | K10: 9 | L10: 9 | M10: 9 | N10: 9 | O10: 8 | P10: =SUM(ScoresHeideroosje[[#This Row],[21]:[25]]) -> 44 | Q10: 5
A11: 8 | B11: Marcel Walschot | C11: 1 | D11: 215 | E11: 10 | F11: 9 | G11: 9 | H11: 9 | I11: 9 | J11: =SUM(ScoresHeideroosje[[#This Row],[1]:[5]]) -> 46 | K11: 8 | L11: 8 | M11: 8 | N11: 7 | O11: 10 | P11: =SUM(ScoresHeideroosje[[#This Row],[21]:[25]]) -> 41 | Q11: 5 | S11: Laatste pijlen
A12: 9 | B12: Cor Joosten | C12: 1 | D12: 215 | E12: 10 | F12: 8 | G12: 10 | H12: 9 | I12: 10 | J12: =SUM(ScoresHeideroosje[[#This Row],[1]:[5]]) -> 47 | K12: 6 | L12: 8 | M12: 8 | N12: 10 | O12: 8 | P12: =SUM(ScoresHeideroosje[[#This Row],[21]:[25]]) -> 40 | Q12: 5 | S12: Optioneel veld om automatisch sorteren mogelijk te maken
A13: 10 | B13: Michael Simons | C13: 1 | D13: 215 | E13: 10 | F13: 10 | G13: 8 | H13: 10 | I13: 6 | J13: =SUM(ScoresHeideroosje[[#This Row],[1]:[5]]) -> 44 | K13: 10 | L13: 9 | M13: 9 | N13: 6 | O13: 8 | P13: =SUM(ScoresHeideroosje[[#This Row],[21]:[25]]) -> 42 | Q13: 5 | S13: Invullen zover nodig
A14: 11 | B14: Huub Sijbers | C14: 1 | D14: 212 | E14: 10 | F14: 9 | G14: 9 | H14: 7 | I14: 9 | J14: =SUM(ScoresHeideroosje[[#This Row],[1]:[5]]) -> 44 | K14: 10 | L14: 9 | M14: 9 | N14: 7 | O14: 9 | P14: =SUM(ScoresHeideroosje[[#This Row],[21]:[25]]) -> 44 | Q14: 5
A15: 12 | B15: Jan Derks | C15: 3 | D15: 212 | E15: 10 | F15: 9 | G15: 10 | H15: 9 | I15: 8 | J15: =SUM(ScoresHeideroosje[[#This Row],[1]:[5]]) -> 46 | K15: 10 | L15: 9 | M15: 10 | N15: 9 | O15: 8 | P15: =SUM(ScoresHeideroosje[[#This Row],[21]:[25]]) -> 46 | Q15: 5 | S15: Uitslag maken
A16: 13 | B16: Mike Sijbers | C16: 5 | D16: 208 | E16: 10 | F16: 8 | G16: 7 | H16: 10 | I16: 9 | J16: =SUM(ScoresHeideroosje[[#This Row],[1]:[5]]) -> 44 | K16: 9 | L16: 1 | M16: 6 | N16: 10 | O16: 7 | P16: =SUM(ScoresHeideroosje[[#This Row],[21]:[25]]) -> 33 | Q16: 5 | S16: Gebruik de knop 'Maak Uitslag' in het uitslagen tabblad om alle
A17: 14 | B17: Olga Sijbers | C17: 5 | D17: 208 | E17: 10 | F17: 9 | G17: 9 | H17: 8 | I17: 8 | J17: =SUM(ScoresHeideroosje[[#This Row],[1]:[5]]) -> 44 | K17: 7 | L17: 10 | M17: 7 | N17: 8 | O17: 7 | P17: =SUM(ScoresHeideroosje[[#This Row],[21]:[25]]) -> 39 | Q17: 5 | S17: tabbladen (incl. deze dus) te sorteren en een uitslag te maken
A18: 15 | B18: Ria Walschot | C18: 2 | D18: 202 | E18: 7 | F18: 7 | G18: 9 | H18: 10 | I18: 8 | J18: =SUM(ScoresHeideroosje[[#This Row],[1]:[5]]) -> 41 | K18: 7 | L18: 8 | M18: 9 | N18: 8 | O18: 9 | P18: =SUM(ScoresHeideroosje[[#This Row],[21]:[25]]) -> 41 | Q18: 5
A19: 16 | B19: Wim Janssen | C19: 3 | D19: 202 | E19: 9 | F19: 9 | G19: 10 | H19: 8 | I19: 8 | J19: =SUM(ScoresHeideroosje[[#This Row],[1]:[5]]) -> 44 | K19: 10 | L19: 6 | M19: 10 | N19: 10 | O19: 7 | P19: =SUM(ScoresHeideroosje[[#This Row],[21]:[25]]) -> 43 | Q19: 5 | S19: Team | U19: Punten
A20: 17 | B20: Fred Janssen | C20: 1 | D20: 202 | E20: 8 | F20: 7 | G20: 10 | H20: 9 | I20: 10 | J20: =SUM(ScoresHeideroosje[[#This Row],[1]:[5]]) -> 44 | K20: 10 | L20: 7 | M20: 6 | N20: 7 | O20: 3 | P20: =SUM(ScoresHeideroosje[[#This Row],[21]:[25]]) -> 33 | Q20: 5 | S20: =CONCATENATE($B$1," 1") -> Heideroosje 1 | U20: =SUM(D4:D9) -> 1342
A21: 18 | B21: Brianne Ghielen | C21: 5 | D21: 200 | E21: 10 | F21: 9 | G21: 9 | H21: 9 | I21: 9 | J21: =SUM(ScoresHeideroosje[[#This Row],[1]:[5]]) -> 46 | K21: 7 | L21: 6 | M21: 7 | N21: 8 | O21: 5 | P21: =SUM(ScoresHeideroosje[[#This Row],[21]:[25]]) -> 33 | Q21: 5 | S21: =CONCATENATE($B$1," 2") -> Heideroosje 2 | U21: =SUM(D10:D15) -> 1285
A22: 19 | B22: Hans Sijbers | C22: 1 | D22: 198 | E22: 8 | F22: 9 | G22: 6 | H22: 10 | I22: 9 | J22: =SUM(ScoresHeideroosje[[#This Row],[1]:[5]]) -> 42 | K22: 8 | L22: 9 | M22: 6 | N22: 10 | O22: 9 | P22: =SUM(ScoresHeideroosje[[#This Row],[21]:[25]]) -> 42 | Q22: 5 | S22: =CONCATENATE($B$1," 3") -> Heideroosje 3 | U22: =SUM(D16:D21) -> 1222
A23: 20 | B23: Jan Ottenheim | C23: 3 | D23: 196 | E23: 10 | F23: 7 | G23: 8 | H23: 10 | I23: 8 | J23: =SUM(ScoresHeideroosje[[#This Row],[1]:[5]]) -> 43 | K23: 5 | L23: 8 | M23: 8 | N23: 4 | O23: 8 | P23: =SUM(ScoresHeideroosje[[#This Row],[21]:[25]]) -> 33 | Q23: 5 | S23: =CONCATENATE($B$1," 4") -> Heideroosje 4 | U23: =SUM(D22:D27) -> 1161
A24: 21 | B24: Maurice Linders | C24: 1 | D24: 195 | E24: 7 | F24: 10 | G24: 8 | H24: 8 | I24: 9 | J24: =SUM(ScoresHeideroosje[[#This Row],[1]:[5]]) -> 42 | K24: 9 | L24: 8 | M24: 6 | N24: 9 | O24: 8 | P24: =SUM(ScoresHeideroosje[[#This Row],[21]:[25]]) -> 40 | Q24: 5 | S24: =CONCATENATE($B$1," 5") -> Heideroosje 5 | U24: =SUM(D28:D33) -> 942
A25: 22 | B25: Petra Joosten | C25: 2 | D25: 192 | E25: 7 | F25: 10 | G25: 9 | H25: 9 | I25: 8 | J25: =SUM(ScoresHeideroosje[[#This Row],[1]:[5]]) -> 43 | K25: 7 | L25: 8 | M25: 8 | N25: 9 | O25: 9 | P25: =SUM(ScoresHeideroosje[[#This Row],[21]:[25]]) -> 41 | Q25: 5 | S25: =CONCATENATE($B$1," 6") -> Heideroosje 6 | U25: =SUM(D34:D39) -> 246
A26: 23 | B26: Huub Korsten | C26: 1 | D26: 192 | E26: 9 | F26: 9 | G26: 10 | H26: 7 | I26: 10 | J26: =SUM(ScoresHeideroosje[[#This Row],[1]:[5]]) -> 45 | K26: 9 | L26: 9 | M26: 7 | N26: 7 | O26: 9 | P26: =SUM(ScoresHeideroosje[[#This Row],[21]:[25]]) -> 41 | Q26: 5 | S26: =CONCATENATE($B$1," 7") -> Heideroosje 7 | U26: =SUM(D40:D45) -> 0
A27: 24 | B27: Harry Moonen | C27: 1 | D27: 188 | E27: 9 | F27: 9 | G27: 8 | H27: 7 | I27: 7 | J27: =SUM(ScoresHeideroosje[[#This Row],[1]:[5]]) -> 40 | K27: 9 | L27: 8 | M27: 8 | N27: 7 | O27: 7 | P27: =SUM(ScoresHeideroosje[[#This Row],[21]:[25]]) -> 39 | Q27: 5 | S27: =CONCATENATE($B$1," 8") -> Heideroosje 8 | U27: =SUM(D46:D51) -> 0
A28: 25 | B28: Diana Sijbers | C28: 2 | D28: 180 | E28: 6 | F28: 7 | G28: 9 | H28: 8 | I28: 9 | J28: =SUM(ScoresHeideroosje[[#This Row],[1]:[5]]) -> 39 | K28: 5 | L28: 8 | M28: 8 | N28: 9 | O28: 7 | P28: =SUM(ScoresHeideroosje[[#This Row],[21]:[25]]) -> 37 | Q28: 5 | S28: =CONCATENATE($B$1," 9") -> Heideroosje 9 | U28: =SUM(D52:D57) -> 0
A29: 26 | B29: Fried Fijten | C29: 3 | D29: 173 | E29: 4 | F29: 8 | G29: 7 | H29: 8 | I29: 10 | J29: =SUM(ScoresHeideroosje[[#This Row],[1]:[5]]) -> 37 | K29: 4 | L29: 8 | M29: 7 | N29: 8 | O29: 10 | P29: =SUM(ScoresHeideroosje[[#This Row],[21]:[25]]) -> 37 | Q29: 5 | S29: =CONCATENATE($B$1," 10") -> Heideroosje 10 | U29: =SUM(D58:D63) -> 0
A30: 27 | B30: Carolien van Dijk | C30: 2 | D30: 156 | E30: 7 | F30: 9 | G30: 6 | H30: 8 | I30: 6 | J30: =SUM(ScoresHeideroosje[[#This Row],[1]:[5]]) -> 36 | K30: 8 | L30: 5 | M30: 4 | N30: 5 | O30: 9 | P30: =SUM(ScoresHeideroosje[[#This Row],[21]:[25]]) -> 31 | Q30: 5
A31: 28 | B31: Jose Korsten | C31: 2 | D31: 156 | E31: 7 | F31: 7 | G31: 6 | H31: 10 | I31: 8 | J31: =SUM(ScoresHeideroosje[[#This Row],[1]:[5]]) -> 38 | K31: 7 | L31: 7 | M31: 8 | N31: 5 | O31: 5 | P31: =SUM(ScoresHeideroosje[[#This Row],[21]:[25]]) -> 32 | Q31: 5
A32: 29 | B32: Thei Peeters | C32: 3 | D32: 142 | E32: 7 | F32: 9 | G32: 8 | H32: 8 | I32: 8 | J32: =SUM(ScoresHeideroosje[[#This Row],[1]:[5]]) -> 40 | K32: 7 | L32: 9 | M32: 8 | N32: 8 | O32: 8 | P32: =SUM(ScoresHeideroosje[[#This Row],[21]:[25]]) -> 40 | Q32: 5
A33: 30 | B33: Myrthe Das | C33: 5 | D33: 135 | E33: 8 | F33: 7 | G33: 7 | H33: 7 | I33: 6 | J33: =SUM(ScoresHeideroosje[[#This Row],[1]:[5]]) -> 35 | K33: 7 | L33: 5 | M33: 6 | N33: 5 | O33: 8 | P33: =SUM(ScoresHeideroosje[[#This Row],[21]:[25]]) -> 31 | Q33: 5
A34: 31 | B34: Fabienne v/d Dungen | C34: 5 | D34: 131 | E34: 9 | F34: 9 | G34: 7 | H34: 5 | I34: 7 | J34: =SUM(ScoresHeideroosje[[#This Row],[1]:[5]]) -> 37 | K34: 5 | L34: 5 | M34: 4 | N34: 3 | O34: 9 | P34: =SUM(ScoresHeideroosje[[#This Row],[21]:[25]]) -> 26 | Q34: 5
A35: 32 | B35: Mike Koper | C35: 1 | D35: 115 | E35: 4 | F35: 7 | G35: 7 | H35: 5 | I35: 4 | J35: =SUM(ScoresHeideroosje[[#This Row],[1]:[5]]) -> 27 | K35: 4 | L35: 7 | M35: 7 | N35: 5 | O35: 4 | P35: =SUM(ScoresHeideroosje[[#This Row],[21]:[25]]) -> 27 | Q35: 5
A36: 33 | B36: Rian Jeurninck | C36: 2 | J36: =SUM(ScoresHeideroosje[[#This Row],[1]:[5]]) -> 0 | P36: =SUM(ScoresHeideroosje[[#This Row],[21]:[25]]) -> 0 | Q36: 5
A37: 34 | B37: Stephan Ghielen | C37: 4 | J37: =SUM(ScoresHeideroosje[[#This Row],[1]:[5]]) -> 0 | P37: =SUM(ScoresHeideroosje[[#This Row],[21]:[25]]) -> 0 | Q37: 5
A38: 35 | B38: Silfran Ghielen | C38: 1 | J38: =SUM(ScoresHeideroosje[[#This Row],[1]:[5]]) -> 0 | P38: =SUM(ScoresHeideroosje[[#This Row],[21]:[25]]) -> 0 | Q38: 5
A39: 36 | J39: =SUM(ScoresHeideroosje[[#This Row],[1]:[5]]) -> 0 | P39: =SUM(ScoresHeideroosje[[#This Row],[21]:[25]]) -> 0 | Q39: 5
A40: 37 | J40: =SUM(ScoresHeideroosje[[#This Row],[1]:[5]]) -> 0 | P40: =SUM(ScoresHeideroosje[[#This Row],[21]:[25]]) -> 0 | Q40: 5
A41: 38 | J41: =SUM(ScoresHeideroosje[[#This Row],[1]:[5]]) -> 0 | P41: =SUM(ScoresHeideroosje[[#This Row],[21]:[25]]) -> 0 | Q41: 5
A42: 39 | J42: =SUM(ScoresHeideroosje[[#This Row],[1]:[5]]) -> 0 | P42: =SUM(ScoresHeideroosje[[#This Row],[21]:[25]]) -> 0 | Q42: 5
A43: 40 | J43: =SUM(ScoresHeideroosje[[#This Row],[1]:[5]]) -> 0 | P43: =SUM(ScoresHeideroosje[[#This Row],[21]:[25]]) -> 0 | Q43: 5
A44: 41 | J44: =SUM(ScoresHeideroosje[[#This Row],[1]:[5]]) -> 0 | P44: =SUM(ScoresHeideroosje[[#This Row],[21]:[25]]) -> 0 | Q44: 5
A45: 42 | J45: =SUM(ScoresHeideroosje[[#This Row],[1]:[5]]) -> 0 | P45: =SUM(ScoresHeideroosje[[#This Row],[21]:[25]]) -> 0 | Q45: 5
A46: 43 | J46: =SUM(ScoresHeideroosje[[#This Row],[1]:[5]]) -> 0 | P46: =SUM(ScoresHeideroosje[[#This Row],[21]:[25]]) -> 0 | Q46: 5
A47: 44 | J47: =SUM(ScoresHeideroosje[[#This Row],[1]:[5]]) -> 0 | P47: =SUM(ScoresHeideroosje[[#This Row],[21]:[25]]) -> 0 | Q47: 5
A48: 45 | J48: =SUM(ScoresHeideroosje[[#This Row],[1]:[5]]) -> 0 | P48: =SUM(ScoresHeideroosje[[#This Row],[21]:[25]]) -> 0 | Q48: 5
A49: 46 | J49: =SUM(ScoresHeideroosje[[#This Row],[1]:[5]]) -> 0 | P49: =SUM(ScoresHeideroosje[[#This Row],[21]:[25]]) -> 0 | Q49: 5
A50: 47 | J50: =SUM(ScoresHeideroosje[[#This Row],[1]:[5]]) -> 0 | P50: =SUM(ScoresHeideroosje[[#This Row],[21]:[25]]) -> 0 | Q50: 5
A51: 48 | J51: =SUM(ScoresHeideroosje[[#This Row],[1]:[5]]) -> 0 | P51: =SUM(ScoresHeideroosje[[#This Row],[21]:[25]]) -> 0 | Q51: 5
A52: 49 | J52: =SUM(ScoresHeideroosje[[#This Row],[1]:[5]]) -> 0 | P52: =SUM(ScoresHeideroosje[[#This Row],[21]:[25]]) -> 0 | Q52: 5
A53: 50 | J53: =SUM(ScoresHeideroosje[[#This Row],[1]:[5]]) -> 0 | P53: =SUM(ScoresHeideroosje[[#This Row],[21]:[25]]) -> 0 | Q53: 5
A54: 51 | J54: =SUM(ScoresHeideroosje[[#This Row],[1]:[5]]) -> 0 | P54: =SUM(ScoresHeideroosje[[#This Row],[21]:[25]]) -> 0 | Q54: 5
A55: 52 | J55: =SUM(ScoresHeideroosje[[#This Row],[1]:[5]]) -> 0 | P55: =SUM(ScoresHeideroosje[[#This Row],[21]:[25]]) -> 0 | Q55: 5
A56: 53 | J56: =SUM(ScoresHeideroosje[[#This Row],[1]:[5]]) -> 0 | P56: =SUM(ScoresHeideroosje[[#This Row],[21]:[25]]) -> 0 | Q56: 5
A57: 54 | J57: =SUM(ScoresHeideroosje[[#This Row],[1]:[5]]) -> 0 | P57: =SUM(ScoresHeideroosje[[#This Row],[21]:[25]]) -> 0 | Q57: 5
A58: 55 | J58: =SUM(ScoresHeideroosje[[#This Row],[1]:[5]]) -> 0 | P58: =SUM(ScoresHeideroosje[[#This Row],[21]:[25]]) -> 0 | Q58: 5
A59: 56 | J59: =SUM(ScoresHeideroosje[[#This Row],[1]:[5]]) -> 0 | P59: =SUM(ScoresHeideroosje[[#This Row],[21]:[25]]) -> 0 | Q59: 5
A60: 57 | J60: =SUM(ScoresHeideroosje[[#This Row],[1]:[5]]) -> 0 | P60: =SUM(ScoresHeideroosje[[#This Row],[21]:[25]]) -> 0 | Q60: 5
A61: 58 | J61: =SUM(ScoresHeideroosje[[#This Row],[1]:[5]]) -> 0 | P61: =SUM(ScoresHeideroosje[[#This Row],[21]:[25]]) -> 0 | Q61: 5
A62: 59 | J62: =SUM(ScoresHeideroosje[[#This Row],[1]:[5]]) -> 0 | P62: =SUM(ScoresHeideroosje[[#This Row],[21]:[25]]) -> 0 | Q62: 5
A63: 60 | J63: =SUM(ScoresHeideroosje[[#This Row],[1]:[5]]) -> 0 | P63: =SUM(ScoresHeideroosje[[#This Row],[21]:[25]]) -> 0 | Q63: 5
A100: Actueel jaar | C100: ='# Onderlinge'!M1 -> 2016 | E100: Van | G100: t/m
A101: Jeugd Klasse A | C101: 16 t/m 18 jr | E101: =C100-18 -> 1998 | G101: =C100-16 -> 2000
A102: Jeugd Klasse B | C102: 13 t/m 15 jr | E102: =C100-15 -> 2001 | G102: =C100-13 -> 2003
A103: Jeugd Klasse C | C103: t/m 12 jr | E103: =C100-12 -> 2004 | G103: =C100 -> 2016

Sheet 18m schutters
B1: 18m Schutters
E2: Hoogste serie | K2: Laatste pijlen*
A3: Positie | B3: Naam | C3: Klasse | D3: Punten | E3: 1 | F3: 2 | G3: 3 | H3: 4 | I3: 5 | J3: Totaal | K3: 21 | L3: 22 | M3: 23 | N3: 24 | O3: 25 | P3: Totaal2 | Q3: Club | S3: Vereniging
A4: 1 | B4: Loek Hendriks | C4: N.V.T. | D4: 177 | E4: 7 | F4: 10 | G4: 10 | H4: 8 | I4: 7 | J4: =SUM(E4:I4) -> 42 | K4: 6 | L4: 5 | M4: 6 | N4: 8 | O4: 4 | P4: =SUM(Table23[[#This Row],[21]:[25]]) -> 29 | Q4: 3 | S4: 1 | T4: Ons Genoegen
A5: 2 | B5: Bram Walschot | C5: N.V.T. | D5: 173 | E5: 7 | F5: 9 | G5: 9 | H5: 8 | I5: 9 | J5: =SUM(E5:I5) -> 42 | K5: 5 | L5: 6 | M5: 3 | N5: 7 | O5: 9 | P5: =SUM(Table23[[#This Row],[21]:[25]]) -> 30 | Q5: 5 | S5: 2 | T5: Buitenlust
A6: 3 | B6: Jorn Hendriks | C6: N.V.T. | D6: 146 | E6: 10 | F6: 4 | G6: 6 | H6: 10 | I6: 6 | J6: =SUM(E6:I6) -> 36 | K6: 6 | L6: 8 | M6: 8 | N6: 1 | O6: 3 | P6: =SUM(Table23[[#This Row],[21]:[25]]) -> 26 | Q6: 3 | S6: 3 | T6: Roos in Bloei
A7: 4 | C7: N.V.T. | J7: =SUM(E7:I7) -> 0 | P7: =SUM(Table23[[#This Row],[21]:[25]]) -> 0 | S7: 4 | T7: Heideboem
A8: 5 | C8: N.V.T. | J8: =SUM(E8:I8) -> 0 | P8: =SUM(Table23[[#This Row],[21]:[25]]) -> 0 | S8: 5 | T8: Heideroosje
A9: 6 | C9: N.V.T. | J9: =SUM(E9:I9) -> 0 | P9: =SUM(Table23[[#This Row],[21]:[25]]) -> 0
A10: 7 | C10: N.V.T. | J10: =SUM(E10:I10) -> 0 | P10: =SUM(Table23[[#This Row],[21]:[25]]) -> 0 | T10: Van | U10: t/m
A11: 8 | C11: N.V.T. | J11: =SUM(E11:I11) -> 0 | P11: =SUM(Table23[[#This Row],[21]:[25]]) -> 0 | S11: Groep C | T11: =E103 -> 2004 | U11: =G103 -> 2016
A12: 9 | C12: N.V.T. | J12: =SUM(E12:I12) -> 0 | P12: =SUM(Table23[[#This Row],[21]:[25]]) -> 0
A13: 10 | C13: N.V.T. | J13: =SUM(E13:I13) -> 0 | P13: =SUM(Table23[[#This Row],[21]:[25]]) -> 0
A14: 11 | C14: N.V.T. | J14: =SUM(E14:I14) -> 0 | P14: =SUM(Table23[[#This Row],[21]:[25]]) -> 0
A15: 12 | C15: N.V.T. | J15: =SUM(E15:I15) -> 0 | P15: =SUM(Table23[[#This Row],[21]:[25]]) -> 0
A16: 13 | C16: N.V.T. | J16: =SUM(E16:I16) -> 0 | P16: =SUM(Table23[[#This Row],[21]:[25]]) -> 0
A17: 14 | C17: N.V.T. | J17: =SUM(E17:I17) -> 0 | P17: =SUM(Table23[[#This Row],[21]:[25]]) -> 0
A18: 15 | C18: N.V.T. | J18: =SUM(E18:I18) -> 0 | P18: =SUM(Table23[[#This Row],[21]:[25]]) -> 0
A100: Actueel jaar | C100: ='# Onderlinge'!M1 -> 2016 | E100: Van | G100: t/m
A101: Jeugd Klasse A | C101: 16 t/m 18 jr | E101: =C100-18 -> 1998 | G101: =C100-16 -> 2000
A102: Jeugd Klasse B | C102: 13 t/m 15 jr | E102: =C100-15 -> 2001 | G102: =C100-13 -> 2003
A103: Jeugd Klasse C | C103: t/m 12 jr | E103: =C100-12 -> 2004 | G103: =C100 -> 2016
